Workbook

Sheet Collateral Tables
B1: CNHI CAPITAL AUSTRALIA RECEIVABLES TRUST SERIES 2017-1 (TERM DEAL)
B2: COLLATERAL DATA TABLES
B4: OUTSTANDING RECEIVABLES | E4: 2019-04-30 | I4: 2019-01-31 | M4: 2018-10-31 | Q4: 2018-07-31 | U4: 2018-04-30 | Y4: 2018-01-31 | AC4: 2017-10-31
B6: Opening Balance | E6: =I13 -> 230544996.1 | I6: 259202455.3 | M6: 283467876.5 | Q6: 308006527.8 | U6: 379616885.6 | Y6: 413211906.9 | AC6: 449999902.8
B7: Principal Repayments - Scheduled | E7: =MIN(([3]Sheet1!$B$3+[4]Sheet1!$B$3+[5]Sheet1!$B$3),'[2]16 May 19'!D23) -> 55053713.04 | I7: 24431755.95 | M7: 17041956.47 | Q7: 21065667.01 | U7: 69066943.86 | Y7: 28752953.19 | AC7: 29068086
B8: Principal Repayments - Unscheduled | E8: ='[2]16 May 19'!$H$23-'Collateral Tables'!E7 -> 6413098.75 | I8: 4225703.26 | M8: 7032919.42 | Q8: 3460781.39 | U8: 2543413.9 | Y8: 4655843.91 | AC8: 7719909.93
A9: =SUM(AC9) -> 0 | B9: Charge-Offs | E9: ='[2]16 May 19'!$H37 -> 0 | I9: 0 | M9: 190545.26 | Q9: 12202.94 | U9: 0 | Y9: 186224.22 | AC9: 0
B10: Reinstatements
B11: New Receivables Purchased
B12: Non Cash Change in Receivables
B13: Closing Balance | E13: =E6-E7-E8-E9+E10+E11-E12 -> 169078184.3 | I13: 230544996.1 | M13: 259202455.3 | Q13: 283467876.5 | U13: 308006527.8 | Y13: 379616885.6 | AC13: 413211906.9
B15: PORTFOLIO STATISTICS
B17: Summary
B18: Number of contracts | E18: =[6]Summary!$B$4 -> 2757 | I18: 3136 | M18: 3411 | Q18: 3664 | U18: 3817 | Y18: 4136 | AC18: 4356
B19: Dollar value of contracts | E19: =[6]Summary!$B$6 -> 61326.87136 | I19: 73515.62377 | M19: 75990.16574 | Q19: 77365.68681 | U19: 80693.35285 | Y19: 91783.57969 | AC19: 94860.40104
B20: Number of contracts closed during the Quarter | E20: =[6]Summary!$B$19 -> 379 | I20: 275 | M20: 251 | Q20: 152 | U20: 319 | Y20: 219 | AC20: 259
B21: Dollar value of contracts closed during the Quarter | E21: =[6]Summary!$B$20 -> 20529534.61 | I21: 9816130.64 | M21: 9299561.71 | Q21: 6037872.46 | U21: 13675265.36 | Y21: 7726571.46 | AC21: 11324349.98
A23: =SUM(AC23) -> 0 | B23: Dollar Value of Recoveries from Collateral | E23: =[6]Summary!$C$16 -> 2340 | I23: 1800 | M23: 1440 | Q23: 0 | U23: 218294.4364 | Y23: 0 | AC23: 0
B24: Dollar Value of Recoveries from Other Sources | E24: =[1]Summary!$C$14 -> 0 | I24: 0 | M24: 0 | Q24: 0 | U24: 0 | Y24: 0 | AC24: 0
B26: Average Term of Contracts (Months) | E26: =[7]Sheet1!$W$2759 -> 55.57535003 | I26: 54.52955423 | M26: 54.11960132 | Q26: 53.90962789 | U26: 53.61265647 | Y26: 53.05658673 | AC26: 52.79114283
B27: Average Term to Maturity (Months) | E27: =[7]Sheet1!$X$2759 -> 22.32424511 | I27: 23.73360796 | M27: 26.14406173 | Q27: 28.74278394 | U27: 31.28010481 | Y27: 32.80783773 | AC27: 35.24800546
B28: Average Residual / Balloon Payment * | E28: =[7]Sheet1!$AI$2759 -> 0.0392243477 | I28: 0.03518605417 | M28: 0.03498423104 | Q28: 0.03489476637 | U28: 0.03415862295 | Y28: 0.0321306132 | AC28: 0.03188383595
B29: Average Seasoning (Months) | E29: =E26-E27 -> 33.25110492 | I29: 30.79594627 | M29: 27.97553959 | Q29: 25.16684394 | U29: 22.33255166 | Y29: 20.248749 | AC29: 17.54313737
B30: Average Dollar Value of Individual Assets | E30: =E19/E18 -> 22.24405925 | I30: 23.44248207 | M30: 22.27797295 | Q30: 21.1150892 | U30: 21.14051686 | Y30: 22.19138774 | AC30: 21.77695157
B31: Weighted Average Interest Rate | E31: =[7]Sheet1!$AA$2759/100 -> 0.02678883713 | I31: 0.02670704194 | M31: 0.02657453498 | Q31: 0.02668174955 | U31: 0.02674000542 | Y31: 0.02703720324 | AC31: 0.02722418735
B33: Payment in Arrears
A34: 1. 0 - 30 Days | B34: 0 - 30 Days | E34: =IFERROR(VLOOKUP($A$34,'[8]Arrears Reporting'!$A$1:$D$7,3,FALSE),0) -> 2744 | F34: =IFERROR(VLOOKUP($A$34,'[8]Arrears Reporting'!$A$1:$D$7,2,FALSE),0) -> 195519.78 | G34: =F34/F$50 -> 0.001156386797 | I34: 3128 | J34: 148936.92 | K34: 0.000646021048 | M34: 3405 | N34: 244573.95 | O34: 0.0009435633998 | Q34: 3656 | R34: 2564.35 | S34: 9.046351325e-06 | U34: 3804 | V34: 490793.42 | W34: 0.001593451358 | Y34: 4131 | Z34: 190928.49 | AA34: 0.0005029504673 | AC34: 4347 | AD34: 271017.79 | AE34: 0.0006558808821
A35: 2. 31 - 60 Days | B35: 31 - 60 Days | E35: =IFERROR(VLOOKUP($A$35,'[8]Arrears Reporting'!$A$1:$D$7,3,FALSE),0) -> 8 | F35: =IFERROR(VLOOKUP($A$35,'[8]Arrears Reporting'!$A$1:$D$7,2,FALSE),0) -> 97001.86 | G35: =F35/F$50 -> 0.0005737100879 | I35: 4 | J35: 11616.37 | K35: 5.038656312e-05 | M35: 3 | N35: 28877.22 | O35: 0.0001114079724 | Q35: 2 | R35: 19298.43 | S35: 6.807977764e-05 | U35: 6 | V35: 77740.69 | W35: 0.0002523994882 | Y35: 1 | Z35: 13341.02 | AA35: 3.514337878e-05 | AC35: 5 | AD35: 35820.54 | AE35: 8.668806344e-05
A36: 3. 61 - 90 Days | B36: 61 - 90 Days | E36: =IFERROR(VLOOKUP($A$36,'[8]Arrears Reporting'!$A$1:$D$7,3,FALSE),0) -> 4 | F36: =IFERROR(VLOOKUP($A$36,'[8]Arrears Reporting'!$A$1:$D$7,2,FALSE),0) -> 148051.94 | G36: 0.0008756418847 | I36: 0 | J36: 0 | K36: 0 | M36: 3 | N36: 10324.19 | O36: 3.983060263e-05 | Q36: 0 | R36: 0 | S36: 0 | U36: 5 | V36: 98534.73 | W36: 0.0003199111743 | Y36: 3 | Z36: 20131.84 | AA36: 5.303199295e-05 | AC36: 2 | AD36: 107243.4 | AE36: 0.0002595360836
A37: 4. 91 - 120 Days | B37: 91 - 120 Days | E37: =IFERROR(VLOOKUP($A$37,'[8]Arrears Reporting'!$A$1:$D$7,3,FALSE),0) -> 1 | F37: =IFERROR(VLOOKUP($A$37,'[8]Arrears Reporting'!$A$1:$D$7,2,FALSE),0) -> 9447.42 | G37: 5.58760436e-05 | I37: 2 | J37: 15837.97 | K37: 6.8697956e-05 | M37: 0 | N37: 0 | O37: 0 | Q37: 3 | R37: 36625.69 | S37: 0.0001292057867 | U37: 1 | V37: 3775.06 | W37: 1.225642855e-05 | Y37: 1 | Z37: 3861.31 | AA37: 1.017159707e-05 | AC37: 1 | AD37: 25089.71 | AE37: 6.071874886e-05
A38: 5. 121 - 150 Days | B38: 121 - 150 Days | E38: =IFERROR(VLOOKUP($A$38,'[8]Arrears Reporting'!$A$1:$D$7,3,FALSE),0) -> 0 | F38: =IFERROR(VLOOKUP($A$38,'[8]Arrears Reporting'!$A$1:$D$7,2,FALSE),0) -> 0 | G38: 0 | I38: 1 | J38: 5325.06 | K38: 2.309770366e-05 | M38: 0 | N38: 0 | O38: 0 | Q38: 2 | R38: 11452.77 | S38: 4.040235579e-05 | U38: 1 | V38: 0 | W38: 0 | Y38: 0 | Z38: 0 | AA38: 0 | AC38: 1 | AD38: 0 | AE38: 0
A39: 6. 151 - 180 Days | B39: 151 - 180 Days | E39: =IFERROR(VLOOKUP($A$39,'[8]Arrears Reporting'!$A$1:$D$7,3,FALSE),0) -> 0 | F39: =IFERROR(VLOOKUP($A$39,'[8]Arrears Reporting'!$A$1:$D$7,2,FALSE),0) -> 0 | G39: 0 | I39: 1 | J39: 3951.97 | K39: 1.714185979e-05 | M39: 0 | N39: 0 | O39: 0 | Q39: 1 | R39: 10444.41 | S39: 3.684512732e-05 | U39: 0 | V39: 0 | W39: 0 | Y39: 0 | Z39: 0 | AA39: 0 | AC39: 0 | AD39: 0 | AE39: 0
B40: Total | E40: =SUM(E34:E39) -> 2757 | F40: =SUM(F34:F39) -> 450021 | G40: =SUM(G34:G39) -> 0.002661614813 | I40: 3136 | J40: 185668.29 | K40: 0.0008053451305 | M40: 3411 | N40: 283775.36 | O40: 0.001094801975 | Q40: 3664 | R40: 80385.65 | S40: 0.0002835793988 | U40: 3817 | V40: 670843.9 | W40: 0.002178018449 | Y40: 4136 | Z40: 228262.66 | AA40: 0.0006012974361 | AC40: 4356 | AD40: 439171.44 | AE40: 0.001062823778
B41: * Expressed as a % of Aggreg. Rec. closing bal. | F41: > 30 days | G41: =SUM(G35:G39) -> 0.001505228016 | J41: > 30 days | K41: 0.0001593240826 | N41: > 30 days | O41: 0.0001512385751 | R41: > 30 days | S41: 0.0002745330475 | V41: > 30 days | W41: 0.0005845670911 | Z41: > 30 days | AA41: 9.834696879e-05 | AD41: > 30 days | AE41: 0.0004069428959
A43: 0 - 30 Days | B43: Account Balances in Arrears
A44: 1. 0 - 30 Days | B44: 0 - 30 Days | E44: =IFERROR(VLOOKUP($A$44,'[8]Arrears Reporting'!$A$1:$D$7,3,FALSE),0) -> 2744 | F44: =IFERROR(VLOOKUP($A$44,'[8]Arrears Reporting'!$A$1:$D$7,4,FALSE),0) -> 168108309.5 | G44: =F44/F$50 -> 0.9942637495 | I44: 3128 | J44: 230291452.8 | K44: 0.9989002434 | M44: 3405 | N44: 259010982.7 | O44: 0.9992613009 | Q44: 3656 | R44: 282794384 | S44: 0.997624096 | U44: 3804 | V44: 307220774.9 | W44: 0.9974489083 | Y44: 4131 | Z44: 379431680.8 | AA44: 0.999512127 | AC44: 4347 | AD44: 412348242.5 | AE44: 0.9979098754
A45: 2. 31 - 60 Days | B45: 31 - 60 Days | E45: =IFERROR(VLOOKUP($A$45,'[8]Arrears Reporting'!$A$1:$D$7,3,FALSE),0) -> 8 | F45: =IFERROR(VLOOKUP($A$45,'[8]Arrears Reporting'!$A$1:$D$7,4,FALSE),0) -> 322182.38 | G45: =F45/F$50 -> 0.001905523065 | I45: 4 | J45: 164754.28 | K45: 0.0007146296071 | M45: 3 | N45: 126660.98 | O45: 0.0004886565593 | Q45: 2 | R45: 386487.84 | S45: 0.001363427295 | U45: 6 | V45: 379940.5 | W45: 0.001233546908 | Y45: 1 | Z45: 12202.94 | AA45: 3.214540887e-05 | AC45: 5 | AD45: 283384.2 | AE45: 0.0006858084079
A46: 3. 61 - 90 Days | B46: 61 - 90 Days | E46: =IFERROR(VLOOKUP($A$46,'[8]Arrears Reporting'!$A$1:$D$7,3,FALSE),0) -> 4 | F46: =IFERROR(VLOOKUP($A$46,'[8]Arrears Reporting'!$A$1:$D$7,4,FALSE),0) -> 499372.13 | G46: 0.0029534983 | I46: 0 | J46: 0 | K46: 0 | M46: 3 | N46: 64811.64 | O46: 0.0002500425388 | Q46: 0 | R46: 0 | S46: 0 | U46: 5 | V46: 358218.16 | W46: 0.001163021325 | Y46: 3 | Z46: 134159.14 | AA46: 0.0003534066715 | AC46: 2 | AD46: 207466.89 | AE46: 0.0005020835231
A47: 4. 91 - 120 Days | B47: 91 - 120 Days | E47: =IFERROR(VLOOKUP($A$47,'[8]Arrears Reporting'!$A$1:$D$7,3,FALSE),0) -> 1 | F47: =IFERROR(VLOOKUP($A$47,'[8]Arrears Reporting'!$A$1:$D$7,4,FALSE),0) -> 148320.31 | G47: =F47/F$50 -> 0.0008772291386 | I47: 2 | J47: 38009.41 | K47: 0.0001648676425 | M47: 0 | N47: 0 | O47: 0 | Q47: 3 | R47: 128825.06 | S47: 0.0004544608779 | U47: 1 | V47: 35391.29 | W47: 0.0001149043504 | Y47: 1 | Z47: 38842.74 | AA47: 0.0001023208963 | AC47: 1 | AD47: 356437.59 | AE47: 0.0008626024179
A48: 5. 121 - 150 Days | B48: 121 - 150 Days | E48: =IFERROR(VLOOKUP($A$48,'[8]Arrears Reporting'!$A$1:$D$7,3,FALSE),0) -> 0 | F48: =IFERROR(VLOOKUP($A$48,'[8]Arrears Reporting'!$A$1:$D$7,4,FALSE),0) -> 0 | G48: =F48/F$50 -> 0 | I48: 1 | J48: 26802.45 | K48: 0.0001162569149 | M48: 0 | N48: 0 | O48: 0 | Q48: 2 | R48: 148341.91 | S48: 0.0005233111837 | U48: 1 | V48: 12202.94 | W48: 3.961909537e-05 | Y48: 0 | Z48: 0 | AA48: 0 | AC48: 1 | AD48: 16375.7 | AE48: 3.963027136e-05
A49: 6. 151 - 180 Days | B49: 151 - 180 Days | E49: =IFERROR(VLOOKUP($A$49,'[8]Arrears Reporting'!$A$1:$D$7,3,FALSE),0) -> 0 | F49: =IFERROR(VLOOKUP($A$49,'[8]Arrears Reporting'!$A$1:$D$7,4,FALSE),0) -> 0 | G49: =F49/F$50 -> 0 | I49: 1 | J49: 23977.23 | K49: 0.0001040023874 | M49: 0 | N49: 0 | O49: 0 | Q49: 1 | R49: 9837.65 | S49: 3.470463787e-05 | U49: 0 | V49: 0 | W49: 0 | Y49: 0 | Z49: 0 | AA49: 0 | AC49: 0 | AD49: 0 | AE49: 0
B50: Total | E50: =SUM(E44:E49) -> 2757 | F50: =SUM(F44:F49) -> 169078184.3 | G50: =SUM(G44:G49) -> 1 | I50: 3136 | J50: 230544996.1 | K50: 1 | M50: 3411 | N50: 259202455.3 | O50: 1 | Q50: 3664 | R50: 283467876.5 | S50: 1 | U50: 3817 | V50: 308006527.8 | W50: 1 | Y50: 4136 | Z50: 379616885.6 | AA50: 1 | AC50: 4356 | AD50: 413211906.9 | AE50: 1
A51: NSW | F51: > 30 days | G51: =SUM(G45:G49) -> 0.005736250503 | J51: > 30 days | K51: 0.001099756552 | N51: > 30 days | O51: 0.0007386990982 | R51: > 30 days | S51: 0.002375903994 | V51: > 30 days | W51: 0.002551091678 | Z51: > 30 days | AA51: 0.0004878729768 | AD51: > 30 days | AE51: 0.00209012462
F52: >90 days | G52: =SUM(G47:G49) -> 0.0008772291386 | J52: >90 days | K52: 0.0003851269448 | N52: >90 days | O52: 0 | R52: >90 days | S52: 0.001012476699 | V52: >90 days | W52: 0.0001545234458 | Z52: >90 days | AA52: 0.0001023208963 | AD52: >90 days | AE52: 0.0009022326892
A54: VIC | B54: Geographic Distribution
A55: NSW | B55: New South Wales | E55: =F55/F$63 -> 0.3215930666 | F55: =IFERROR(VLOOKUP($A$55,'[8]Geographic '!$A$1:$C$10,3,FALSE),0) -> 54374371.8 | I55: 0.3286123431 | J55: 75759931.36 | M55: 0.329409972 | N55: 85383873.55 | Q55: 0.3364246424 | R55: 95365578.99 | U55: 0.3432341434 | V55: 105718356.7 | Y55: 0.3328558773 | Z55: 126357711.5 | AC55: 0.3319563742 | AD55: 137168326.4
A56: VIC | B56: Victoria | E56: =F56/F$63 -> 0.1695252821 | F56: =IFERROR(VLOOKUP($A$56,'[8]Geographic '!$A$1:$C$10,3,FALSE),0) -> 28663026.89 | I56: 0.1594998948 | J56: 36771902.63 | M56: 0.1568206413 | N56: 40648295.27 | Q56: 0.1600350296 | R56: 45364790 | U56: 0.1647459446 | V56: 50742826.37 | Y56: 0.1588504322 | Z56: 60302306.36 | AC56: 0.1590432108 | AD56: 65718548.41
A57: QLD | B57: Queensland | E57: 0.1131478198 | F57: =IFERROR(VLOOKUP($A$57,'[8]Geographic '!$A$1:$C$10,3,FALSE),0) -> 19130827.93 | I57: 0.1013710935 | J57: 23370598.36 | M57: 0.1059720795 | N57: 27468223.21 | Q57: 0.1109970598 | R57: 31464100.83 | U57: 0.1157526917 | V57: 35652584.65 | Y57: 0.1078673835 | Z57: 40948280.19 | AC57: 0.1105964505 | AD57: 45699770.19
A58: SA | B58: South Australia | E58: 0.1938958181 | F58: =IFERROR(VLOOKUP($A$58,'[8]Geographic '!$A$1:$C$10,3,FALSE),0) -> 32783552.87 | I58: 0.1996850088 | J58: 46036379.57 | M58: 0.1912833669 | N58: 49581118.36 | Q58: 0.1835714822 | R58: 52036618.23 | U58: 0.1775542613 | V58: 54687871.51 | Y58: 0.1889063147 | Z58: 71712026.85 | AC58: 0.182358128 | AD58: 75352549.8
A59: NT | B59: Northern Territory | E59: 0.001217383253 | F59: =IFERROR(VLOOKUP($A$59,'[8]Geographic '!$A$1:$C$10,3,FALSE),0) -> 205832.95 | I59: 0.001141286666 | J59: 263117.93 | M59: 0.001029211894 | N59: 266774.25 | Q59: 0.0009538799717 | R59: 270394.33 | U59: 0.0008895218291 | V59: 273978.53 | Y59: 0.000869000254 | Z59: 329887.17 | AC59: 0.0008068516285 | AD59: 333400.7
A60: ACT | B60: Australian Capital Territory | E60: 0.0003329796817 | F60: =IFERROR(VLOOKUP($A$60,'[8]Geographic '!$A$1:$C$10,3,FALSE),0) -> 56299.6 | I60: 0.000291369282 | J60: 67173.73 | M60: 0.000309754126 | N60: 80289.03 | Q60: 0.0003465962747 | R60: 98248.91 | U60: 0.000360885663 | V60: 111155.14 | Y60: 0.0003393987067 | Z60: 128841.48 | AC60: 0.000342650339 | AD60: 141587.2
A61: TAS | B61: Tasmania | E61: 0.00844639328 | F61: =IFERROR(VLOOKUP($A$61,'[8]Geographic '!$A$1:$C$10,3,FALSE),0) -> 1428100.84 | I61: 0.007423907952 | J61: 1711544.83 | M61: 0.008021061518 | N61: 2079078.84 | Q61: 0.008937634667 | R61: 2533532.32 | U61: 0.009818827677 | V61: 3024263.02 | Y61: 0.009124976158 | Z61: 3463995.03 | AC61: 0.00930744629 | AD61: 3845947.63
A62: WA | B62: Western Australia | E62: 0.1918412573 | F62: =IFERROR(VLOOKUP($A$62,'[8]Geographic '!$A$1:$C$10,3,FALSE),0) -> 32436171.46 | I62: 0.201975096 | J62: 46564347.72 | M62: 0.2071539128 | N62: 53694802.83 | Q62: 0.1987336751 | R62: 56334612.88 | U62: 0.1876437239 | V62: 57795491.88 | Y62: 0.2011866171 | Z62: 76373837.01 | AC62: 0.2055888883 | AD62: 84951776.59
B63: Total | E63: =SUM(E55:E62) -> 1 | F63: =SUM(F55:F62) -> 169078184.3 | I63: 1 | J63: 230544996.1 | M63: 1 | N63: 259202455.3 | Q63: 1 | R63: 283467876.5 | U63: 1 | V63: 308006527.8 | Y63: 1 | Z63: 379616885.6 | AC63: 1 | AD63: 413211906.9
A64: AG | G64: =E13-F63 -> 0 | K64: 0 | O64: 2.980232239e-07 | S64: 0 | W64: 0 | AA64: 0 | AE64: 0
A65: CE | B65: Top Industry Distribution
A66: AGRICULTURAL MACHINERY | B66: Agricultural | E66: =F66/F$69 -> 0.9583016974 | F66: =IFERROR(VLOOKUP($A$66,'[8]Top Industry'!$A$1:$C$4,3,FALSE),) -> 162027911 | I66: 0.9632698191 | J66: 222077036.7 | M66: 0.9627593842 | N66: 249549596.3 | Q66: 0.9613595326 | R66: 272514545.2 | U66: 0.9598349654 | V66: 295635435 | Y66: 0.9638123135 | Z66: 365879428.8 | AC66: 0.9626324307 | AD66: 397771182.3
A67: CONSTRUCTION EQUIPMENT | B67: Construction | E67: =F67/F$69 -> 0.04169830264 | F67: =IFERROR(VLOOKUP($A$67,'[8]Top Industry'!$A$1:$C$4,3,FALSE),) -> 7050273.3 | I67: 0.03673018093 | J67: 8467959.42 | M67: 0.03724061582 | N67: 9652859.06 | Q67: 0.03864046743 | R67: 10953331.25 | U67: 0.04016503464 | V67: 12371092.86 | Y67: 0.03618768646 | Z67: 13737456.83 | AC67: 0.03736756933 | AD67: 15440724.58
A68: MOTOR VEHICLE - AG | B68: Motor Vehicle AG | E68: =F68/F$69 -> 0 | F68: =IFERROR(VLOOKUP($A$68,'[8]Top Industry'!$A$1:$C$4,3,FALSE),) -> 0 | I68: 0 | J68: 0 | M68: 0 | N68: 0 | Q68: 0 | R68: 0 | U68: 0 | V68: 0 | Y68: 0 | Z68: 0 | AC68: 0 | AD68: 0
B69: Total | E69: =SUM(E66:E68) -> 1 | F69: =SUM(F66:F68) -> 169078184.3 | G69: =F63-F69 -> 0 | I69: 1 | J69: 230544996.1 | K69: 3.576278687e-07 | M69: 1 | N69: 259202455.3 | O69: 0 | Q69: 1 | R69: 283467876.5 | S69: 0 | U69: 1 | V69: 308006527.8 | W69: 1.013278961e-06 | Y69: 1 | Z69: 379616885.6 | AA69: -1.25169754e-06 | AC69: 1 | AD69: 413211906.9 | AE69: -4.768371582e-07
A70: COMBINE
A71: 40-100 HP TRACTOR | B71: Collateral Types
A72: 100<140 HP TRACTOR | B72: 100<140 HP TRACTOR | E72: =IFERROR(F72/F$101,0) -> 0.1008204929 | F72: =IFERROR(VLOOKUP($A$72,[8]Collateral!$A$1:$C$29,3,FALSE),"") -> 17046545.89 | I72: 0.08979796034 | J72: 20702470.42 | M72: 0.09211644569 | N72: 23876808.9 | Q72: 0.09510325824 | R72: 26958718.66 | U72: 0.09916975788 | V72: 30544932.79 | Y72: 0.09429661203 | Z72: 35796586.18 | AC72: 0.0962411397 | AD72: 39767984.86
A73: 4 EWD TRACTORS | B73: 4 EWD TRACTORS | E73: 0.1069740868 | F73: =IFERROR(VLOOKUP($A$73,[8]Collateral!$A$1:$C$29,3,FALSE),"") -> 18086984.37 | I73: 0.1058210366 | J73: 24396510.48 | M73: 0.1094215015 | N73: 28362321.86 | Q73: 0.1047440787 | R73: 29691581.56 | U73: 0.1024924841 | V73: 31568354.17 | Y73: 0.1023838113 | Z73: 38866623.58 | AC73: 0.1026798972 | AD73: 42428556.11
A74: 40<60 HP TRACTOR | B74: 40<60 HP TRACTOR | E74: 0.009094792779 | F74: =IFERROR(VLOOKUP($A$74,[8]Collateral!$A$1:$C$29,3,FALSE),"") -> 1537731.05 | I74: 0.008241577227 | J74: 1900054.39 | M74: 0.008664500485 | N74: 2245859.8 | Q74: 0.009100468039 | R74: 2579690.35 | U74: 0.009866392967 | V74: 3038913.44 | Y74: 0.009326063024 | Z74: 3540331 | AC74: 0.009495512652 | AD74: 3923658.89
A75: 4WD Vehicle | B75: 4WD Vehicle | E75: 0 | F75: =IFERROR(VLOOKUP($A$75,[8]Collateral!$A$1:$C$29,3,FALSE),"") ->  | I75: 0.0002938834116 | J75: 67753.35 | M75: 0.0002613916211 | N75: 67753.35 | Q75: 0.0002390159719 | R75: 67753.35 | U75: 0.0003365297506 | V75: 103653.36 | Y75: 0.0004428554587 | Z75: 168115.41 | AC75: 0.0004068503525 | AD75: 168115.41
A76: 60<100 HP TRACTOR | B76: 60<100 HP TRACTOR | E76: 0.05370667071 | F76: =IFERROR(VLOOKUP($A$76,[8]Collateral!$A$1:$C$29,3,FALSE),"") -> 9080626.37 | I76: 0.05010223585 | J76: 11550819.77 | M76: 0.05121132523 | N76: 13274101.24 | Q76: 0.05411264331 | R76: 15339196.09 | U76: 0.05649944156 | V76: 17402196.82 | Y76: 0.05487584518 | Z76: 20831797.44 | AC76: 0.05543760934 | AD76: 22907480.27
A77: BACKHOE | B77: BACKHOE | E77: 0.001511688992 | F77: =IFERROR(VLOOKUP($A$77,[8]Collateral!$A$1:$C$29,3,FALSE),"") -> 255593.63 | I77: 0.001225322409 | J77: 282491.95 | M77: 0.001221744677 | N77: 316679.22 | Q77: 0.001173082305 | R77: 332531.15 | U77: 0.001275890231 | V77: 392982.52 | Y77: 0.001127696017 | Z77: 428092.45 | AC77: 0.001125797157 | AD77: 465192.79
A78: BALERS, WINDROWERS, MOWERS, RAKES | B78: BALERS, WINDROWERS, MOWERS, RAKES | E78: 0.02371512822 | F78: =IFERROR(VLOOKUP($A$78,[8]Collateral!$A$1:$C$29,3,FALSE),"") -> 4009710.82 | I78: 0.02455502828 | J78: 5661038.9 | M78: 0.02623676682 | N78: 6800634.38 | Q78: 0.02953697291 | R78: 8372782.99 | U78: 0.03005663891 | V78: 9257640.99 | Y78: 0.03022891683 | Z78: 11475407.26 | AC78: 0.03148194665 | AD78: 13008715.21
A79: COMBINES | B79: COMBINES | E79: 0.29849527 | F79: =IFERROR(VLOOKUP($A$79,[8]Collateral!$A$1:$C$29,3,FALSE),"") -> 50469038.29 | I79: 0.3260622706 | J79: 75172024.91 | M79: 0.3183496048 | N79: 82516999.22 | Q79: 0.3189203573 | R79: 90403676.46 | U79: 0.3101672643 | V79: 95533542.11 | Y79: 0.3278830699 | Z79: 124469949.9 | AC79: 0.3237472107 | AD79: 133776202.3
A80: COMPACT TRACK LOADER | B80: COMPACT TRACK LOADER | E80: 0.000414196842 | F80: =IFERROR(VLOOKUP($A$80,[8]Collateral!$A$1:$C$29,3,FALSE),"") -> 70031.65 | I80: 0.0003294949414 | J80: 75963.41 | M80: 0.0003159078099 | N80: 81884.08 | Q80: 0.0003097129068 | R80: 87793.66 | U80: 0.0003041889101 | V80: 93692.17 | Y80: 0.0002623161239 | Z80: 99579.63 | AC80: 0.0002552106032 | AD80: 105456.06
A81: CRAWLER DOZER | B81: CRAWLER DOZER | E81: 0.001002837951 | F81: =IFERROR(VLOOKUP($A$81,[8]Collateral!$A$1:$C$29,3,FALSE),"") -> 169558.02 | I81: 0.0009406555494 | J81: 216863.43 | M81: 0.0008926334424 | N81: 231372.78 | Q81: 0.0009786148732 | R81: 277405.88 | U81: 0.0009472624884 | V81: 291763.03 | Y81: 0.0008865886971 | Z81: 336564.04 | AC81: 0.0008488886795 | AD81: 350770.91
A82: CULTIVATORS,SEEDERS, HARROWS | B82: CULTIVATORS,SEEDERS, HARROWS | E82: 0.01650382917 | F82: =IFERROR(VLOOKUP($A$82,[8]Collateral!$A$1:$C$29,3,FALSE),"") -> 2790437.47 | I82: 0.02020630848 | J82: 4658463.31 | M82: 0.01805445833 | N82: 4679759.93 | Q82: 0.01728597787 | R82: 4900019.44 | U82: 0.0166910418 | V82: 5140949.83 | Y82: 0.01887524631 | Z82: 7165362.22 | AC82: 0.01754794886 | AD82: 7251021.41
A83: DRILL | B83: DRILL | E83: 0.0008871203023 | F83: =IFERROR(VLOOKUP($A$83,[8]Collateral!$A$1:$C$29,3,FALSE),"") -> 149992.69 | I83: 0.0009228872176 | J83: 212767.03 | M83: 0.0009227628638 | N83: 239182.4 | Q83: 0.0008437725042 | R83: 239182.4 | U83: 0.0007765497754 | V83: 239182.4 | Y83: 0.0007898251405 | Z83: 299830.96 | AC83: 0.0007892780061 | AD83: 326139.07
A84: EXCAVATORS / GRADERS | B84: EXCAVATORS / GRADERS | E84: 0.01992404238 | F84: =IFERROR(VLOOKUP($A$84,[8]Collateral!$A$1:$C$29,3,FALSE),"") -> 3368720.91 | I84: 0.01724910814 | J84: 3976695.57 | M84: 0.01751841831 | N84: 4540817.04 | Q84: 0.0179497202 | R84: 5088169.07 | U84: 0.01871256275 | V84: 5763591.48 | Y84: 0.01676791139 | Z84: 6365382.3 | AC84: 0.01771205688 | AD84: 7318832.8
A85: FEEDERS, MIXERS, WAGONS, BINS, FEED STORAGE | B85: FEEDERS, MIXERS, WAGONS, BINS, FEED STORAGE | E85: 0.0002044795438 | F85: =IFERROR(VLOOKUP($A$85,[8]Collateral!$A$1:$C$29,3,FALSE),"") -> 34573.03 | I85: 0.0001499621791 | J85: 34573.03 | M85: 0.0001333823399 | N85: 34573.03 | Q85: 0.000121964543 | R85: 34573.03 | U85: 0.0001688037275 | V85: 51992.65 | Y85: 0.0001519916321 | Z85: 57698.59 | AC85: 0.0001532127437 | AD85: 63309.33
A86: FRONT END LOADER | B86: FRONT END LOADER | E86: 0.0010020301 | F86: =IFERROR(VLOOKUP($A$86,[8]Collateral!$A$1:$C$29,3,FALSE),"") -> 169421.43 | I86: 0.0008776403019 | J86: 202335.58 | M86: 0.0008215430665 | N86: 212945.98 | Q86: 0.0008755184999 | R86: 248181.37 | U86: 0.000863121447 | V86: 265847.04 | Y86: 0.000804588841 | Z86: 305435.51 | AC86: 0.0007709344641 | AD86: 318559.3
A87: FRONTS | B87: FRONTS | E87: 0.00448097827 | F87: =IFERROR(VLOOKUP($A$87,[8]Collateral!$A$1:$C$29,3,FALSE),"") -> 757635.67 | I87: 0.004721987761 | J87: 1088630.65 | M87: 0.004865415601 | N87: 1261127.67 | Q87: 0.004975491288 | R87: 1410391.95 | U87: 0.00502809181 | V87: 1548685.1 | Y87: 0.005082388227 | Z87: 1929360.39 | AC87: 0.005036028864 | AD87: 2080947.09
A88: HARVESTERS - Other | B88: HARVESTERS - Other | E88: 0.003733784831 | F88: =IFERROR(VLOOKUP($A$88,[8]Collateral!$A$1:$C$29,3,FALSE),"") -> 631301.56 | I88: 0.003288235974 | J88: 758086.35 | M88: 0.003507819163 | N88: 909235.34 | Q88: 0.003636336162 | R88: 1030784.49 | U88: 0.003390786674 | V88: 1044384.43 | Y88: 0.003336308679 | Z88: 1266519.11 | AC88: 0.003451433843 | AD88: 1426173.56
A89: IRRIGATION EQUIPMENT | B89: IRRIGATION EQUIPMENT | E89: 0.0003786302192 | F89: =IFERROR(VLOOKUP($A$89,[8]Collateral!$A$1:$C$29,3,FALSE),"") -> 64018.11 | I89: 0.0003112053231 | J89: 71746.83 | M89: 0.0003060933582 | N89: 79340.15 | Q89: 0.0003062091235 | R89: 86800.45 | U89: 0.0003056106332 | V89: 94130.07 | Y89: 0.0002669304076 | Z89: 101331.29 | AC89: 0.0002623505233 | AD89: 108406.36
A90: MATERIALS HANDLING EQUIPMENT | B90: MATERIALS HANDLING EQUIPMENT | E90: 7.941722377e-05 | F90: =IFERROR(VLOOKUP($A$90,[8]Collateral!$A$1:$C$29,3,FALSE),"") -> 13427.72 | I90: 7.988991437e-05 | J90: 18418.22 | M90: 9.021704663e-05 | N90: 23384.48 | Q90: 9.992878329e-05 | R90: 28326.6 | U90: 0.0001079350825 | V90: 33244.71 | Y90: 0.0001004668429 | Z90: 38138.91 | AC90: 0.0001040854082 | AD90: 43009.33
A91: MINI EXCAVATOR | B91: MINI EXCAVATOR | E91: 0.0005777262181 | F91: =IFERROR(VLOOKUP($A$91,[8]Collateral!$A$1:$C$29,3,FALSE),"") -> 97680.9 | I91: 0.0004587079389 | J91: 105752.82 | M91: 0.0004389568758 | N91: 113778.7 | Q91: 0.0004295331503 | R91: 121758.85 | U91: 0.0004210741601 | V91: 129693.59 | Y91: 0.0003624264758 | Z91: 137583.21 | AC91: 0.0003519453761 | AD91: 145428.02
A92: OTHER AG | B92: OTHER AG | E92: 0.00718222049 | F92: =IFERROR(VLOOKUP($A$92,[8]Collateral!$A$1:$C$29,3,FALSE),"") -> 1214356.8 | I92: 0.006314773317 | J92: 1455839.39 | M92: 0.006359471355 | N92: 1648390.59 | Q92: 0.006560492332 | R92: 1859688.83 | U92: 0.006671531816 | V92: 2054875.35 | Y92: 0.006379555394 | Z92: 2421786.95 | AC92: 0.006314017134 | AD92: 2609027.06
A93: OTHER CE | B93: OTHER CE | E93: 0.0005342121478 | F93: =IFERROR(VLOOKUP($A$93,[8]Collateral!$A$1:$C$29,3,FALSE),"") -> 90323.62 | I93: 0.00111475935 | J93: 257002.19 | M93: 0.001078382223 | N93: 279519.32 | Q93: 0.001064755075 | R93: 301823.86 | U93: 0.001051663458 | V93: 323919.21 | Y93: 0.0009109413283 | Z93: 345808.71 | AC93: 0.000928037391 | AD93: 383476.1
A94: OVER 140 HP TRACTOR | B94: OVER 140 HP TRACTOR | E94: 0.2547828765 | F94: =IFERROR(VLOOKUP($A$94,[8]Collateral!$A$1:$C$29,3,FALSE),"") -> 43078226.16 | I94: 0.2394128452 | J94: 55195433.48 | M94: 0.2397084219 | N94: 62133011.52 | Q94: 0.2350276563 | R94: 66622790.66 | U94: 0.2345171827 | V94: 72232823.16 | Y94: 0.2277968466 | Z94: 86475529.44 | AC94: 0.2270645207 | AD94: 93825763.59
A95: SKID STEER LOADER | B95: SKID STEER LOADER | E95: 0 | F95: =IFERROR(VLOOKUP($A$95,[8]Collateral!$A$1:$C$29,3,FALSE),"") ->  | I95: 0 | M95: 0.0001070018028 | N95: 27735.13 | Q95: 0.0001049034563 | R95: 29736.76 | U95: 0.0001030323942 | V95: 31734.65 | Y95: 8.884955143e-05 | Z95: 33728.79 | AC95: 8.644281397e-05 | AD95: 35719.2
A96: SKIDSTEER / UNILOADER | B96: SKIDSTEER / UNILOADER | E96: 0.01335208702 | F96: =IFERROR(VLOOKUP($A$96,[8]Collateral!$A$1:$C$29,3,FALSE),"") -> 2257546.63 | I96: 0.01174723401 | J96: 2708266.02 | M96: 0.01196812455 | N96: 3102167.27 | Q96: 0.01295961901 | R96: 3673635.68 | U96: 0.01370509265 | V96: 4221258 | Y96: 0.01254924939 | Z96: 4763906.97 | AC96: 0.01290642235 | AD96: 5333087.39
A97: SPRAYING EQUIPMENT | B97: SPRAYING EQUIPMENT | E97: 0.07516899167 | F97: =IFERROR(VLOOKUP($A$97,[8]Collateral!$A$1:$C$29,3,FALSE),"") -> 12709436.63 | I97: 0.08109815877 | J97: 18696774.7 | M97: 0.08067577185 | N97: 20911358.15 | Q97: 0.07869289306 | R97: 22306907.29 | U97: 0.08144408191 | V97: 25085308.88 | Y97: 0.07953881186 | Z97: 30194276.04 | AC97: 0.08029680451 | AD97: 33179595.71
A98: UNDER 40 HP TRACTORS | B98: UNDER 40 HP TRACTORS | E98: 0.001170314791 | F98: =IFERROR(VLOOKUP($A$98,[8]Collateral!$A$1:$C$29,3,FALSE),"") -> 197874.7 | I98: 0.001091822179 | J98: 251714.14 | M98: 0.001142708195 | N98: 296192.77 | Q98: 0.001276426361 | R98: 361825.87 | U98: 0.001389653599 | V98: 428022.38 | Y98: 0.001344388117 | Z98: 510352.43 | AC98: 0.001436837637 | AD98: 593718.42
A99: WHEEL LOADERS (OLD) | B99: WHEEL LOADERS (OLD) | E99: 0.004302093868 | F99: =IFERROR(VLOOKUP($A$99,[8]Collateral!$A$1:$C$29,3,FALSE),"") -> 727390.22 | I99: 0.00358500867 | J99: 826505.81 | M99: 0.003609229082 | N99: 935521.04 | Q99: 0.003570597672 | R99: 1012149.74 | U99: 0.003536332518 | V99: 1089213.5 | Y99: 0.003131240641 | Z99: 1188671.82 | AC99: 0.003048682671 | AD99: 1259751.98
A100: zzDo Not Use Z OVER 100 HP TRACTORS | B100: Under 100 HP TRACTORS | E100: 0 | F100: =IFERROR(VLOOKUP($A$100,[8]Collateral!$A$1:$C$29,3,FALSE),"") ->  | I100: 0 | M100: 0 | Q100: 0 | U100: 0 | Y100: 8.258615776e-06 | Z100: 3135.11 | AC100: 1.889679331e-05 | AD100: 7808.38
B101: Total | E101: =SUM(E72:E100) -> 1 | F101: =SUM(F72:F100) -> 169078184.3 | G101: =F69-F101 -> 0 | I101: 1 | J101: 230544996.1 | K101: -3.87430191e-07 | M101: 1 | N101: 259202455.3 | O101: -2.384185791e-07 | Q101: 1 | R101: 283467876.5 | S101: 0 | U101: 1 | V101: 308006527.8 | W101: -1.013278961e-06 | Y101: 1 | Z101: 379616885.6 | AA101: 1.013278961e-06 | AC101: 1 | AD101: 413211906.9 | AE101: 0
A102: $ 0 - $25,000
A103: $ 25,001 to $50,000 | B103: Contract Balance Distribution
A104: $0 - $25,000 | B104: $ 0 - $25,000 | E104: =IFERROR(F104/F$115,0) -> 0.07639881656 | F104: =IFERROR(VLOOKUP($A$104,'[8] Balance Distribution'!$A$1:$C$13,3,FALSE),"") -> 12917373.19 | I104: 0.05917232848 | J104: 13641884.24 | M104: 0.0557314186 | N104: 14445720.54 | Q104: 0.05205396796 | R104: 14755627.76 | U104: 0.05025860007 | V104: 15479976.9 | Y104: 0.0409966236 | Z104: 15563010.57 | AC104: 0.03835880962 | AD104: 15850316.87
A105: $25,001 - $50,000 | B105: $ 25,001 to $50,000 | E105: =IFERROR(F105/F$115,0) -> 0.1348233034 | F105: =IFERROR(VLOOKUP($A$105,'[8] Balance Distribution'!$A$1:$C$13,3,FALSE),"") -> 22795679.35 | I105: 0.1054021147 | J105: 24299930.12 | M105: 0.106036843 | N105: 27485010.07 | Q105: 0.1096019018 | R105: 31068618.36 | U105: 0.1056801453 | V105: 32550174.62 | Y105: 0.09395310818 | Z105: 35666186.32 | AC105: 0.08671347062 | AD105: 35831038.55
A106: $50,001 - $75,000 | B106: $ 50,001 to $75,000 | E106: 0.1217330719 | F106: =IFERROR(VLOOKUP($A$106,'[8] Balance Distribution'!$A$1:$C$13,3,FALSE),"") -> 20582406.77 | I106: 0.10018934 | J106: 23098151.01 | M106: 0.09512407704 | N106: 24656394.33 | Q106: 0.0927542345 | R106: 26292845.89 | U106: 0.09579375355 | V106: 29505101.42 | Y106: 0.08136007958 | Z106: 30885660.02 | AC106: 0.08319588418 | AD106: 34377529.95
A107: $75,001 - $100,000 | B107: $ 75,001 to $100,000 | E107: 0.1100814275 | F107: =IFERROR(VLOOKUP($A$107,'[8] Balance Distribution'!$A$1:$C$13,3,FALSE),"") -> 18612367.89 | I107: 0.08002444677 | J107: 18449235.77 | M107: 0.07676158956 | N107: 19896792.49 | Q107: 0.07944282089 | R107: 22519487.74 | U107: 0.08055700051 | V107: 24812082.02 | Y107: 0.07632665556 | Z107: 28974887.27 | AC107: 0.07962980287 | AD107: 32903982.69
A108: $100,001 - $125,000 | B108: $100,001 to $125,000 | E108: 0.1015374918 | F108: =IFERROR(VLOOKUP($A$108,'[8] Balance Distribution'!$A$1:$C$13,3,FALSE),"") -> 17167774.75 | I108: 0.08560073322 | J108: 19734820.71 | M108: 0.08658614364 | N108: 22443341.03 | Q108: 0.08215351404 | R108: 23287882.17 | U108: 0.07766565816 | V108: 23921529.7 | Y108: 0.06581294165 | Z108: 24983703.94 | AC108: 0.06404050389 | AD108: 26462298.73
A109: $125,001 - $150,000 | B109: $125,001 to $150,000 | E109: 0.08460840023 | F109: =IFERROR(VLOOKUP($A$109,'[8] Balance Distribution'!$A$1:$C$13,3,FALSE),"") -> 14305434.69 | I109: 0.09067253357 | J109: 20904098.9 | M109: 0.07810485199 | N109: 20244969.41 | Q109: 0.07657204428 | R109: 21705714.79 | U109: 0.07455789198 | V109: 22964317.43 | Y109: 0.05990376341 | Z109: 22740480.1 | AC109: 0.05245439915 | AD109: 21674782.3
A110: $150,001 - $200,000 | B110: $150,000 to $200,000 | E110: 0.1477545383 | F110: =IFERROR(VLOOKUP($A$110,'[8] Balance Distribution'!$A$1:$C$13,3,FALSE),"") -> 24982069.06 | I110: 0.1490718619 | J110: 34367771.82 | M110: 0.1521665424 | N110: 39441941.42 | Q110: 0.1398979245 | R110: 39656567.59 | U110: 0.1321677858 | V110: 40708540.8 | Y110: 0.1195332052 | Z110: 45376823.07 | AC110: 0.1200395477 | AD110: 49601770.39
A111: $200,001 - $300,000 | B111: $200,001 to $300,000 | E111: 0.1723176827 | F111: =IFERROR(VLOOKUP($A$111,'[8] Balance Distribution'!$A$1:$C$13,3,FALSE),"") -> 29135160.92 | I111: 0.2157510857 | J111: 49740333.22 | M111: 0.215318438 | N111: 55811067.81 | Q111: 0.2188749338 | R111: 62044012.71 | U111: 0.2221725059 | V111: 68430582.12 | Y111: 0.2344652681 | Z111: 89006974.85 | AC111: 0.226018903 | AD111: 93393701.9
A112: $300,001 - $400,000 | B112: $300,001 to $400,000 | E112: 0.03140177209 | F112: =IFERROR(VLOOKUP($A$112,'[8] Balance Distribution'!$A$1:$C$13,3,FALSE),"") -> 5309354.61 | I112: 0.06934842173 | J112: 15987931.62 | M112: 0.08609363909 | N112: 22315682.64 | Q112: 0.09337137364 | R112: 26467785.01 | U112: 0.1033037122 | V112: 31818217.7 | Y112: 0.1346140966 | Z112: 51101784.1 | AC112: 0.142340782 | AD112: 58816905.97
A113: $400,001 - $500,000 | B113: $400,001 to $500,000 | E113: 0.0129442079 | F113: =IFERROR(VLOOKUP($A$113,'[8] Balance Distribution'!$A$1:$C$13,3,FALSE),"") -> 2188583.17 | I113: 0.02449018363 | J113: 5646089.29 | M113: 0.02367080027 | N113: 6135529.55 | Q113: 0.02262868978 | R113: 6414506.64 | U113: 0.02360861226 | V113: 7271606.69 | Y113: 0.05186982573 | Z113: 19690661.7 | AC113: 0.0613290379 | AD113: 25341888.7
A114: $500,001+ | B114: $500,000+ | E114: 0.006399287668 | F114: =IFERROR(VLOOKUP($A$114,'[8] Balance Distribution'!$A$1:$C$13,3,FALSE),"") -> 1081979.94 | I114: 0.02027695031 | J114: 4674749.43 | M114: 0.02440565635 | N114: 6326006.05 | Q114: 0.03264859477 | R114: 9254827.83 | U114: 0.03423433427 | V114: 10544398.43 | Y114: 0.04116443247 | Z114: 15626713.65 | AC114: 0.04587885911 | AD114: 18957690.86
A115: $200,001 to $300,000 | B115: Total | E115: =SUM(E104:E114) -> 1 | F115: =SUM(F104:F114) -> 169078184.3 | G115: =F101-F115 -> 0 | I115: 1 | J115: 230544996.1 | K115: 0 | M115: 1 | N115: 259202455.3 | O115: 0 | Q115: 1 | R115: 283467876.5 | S115: 0 | U115: 1 | V115: 308006527.8 | W115: 0 | Y115: 1 | Z115: 379616885.6 | AA115: 0 | AC115: 1 | AD115: 413211906.9 | AE115: 0
A116: 0
A117: 0 to 5 | B117: Residual / Balloon Payment Distribution
A118: 0 | B118: 0 | E118: =IFERROR(F118/F$128,0) -> 0.8612132405 | F118: =IFERROR(VLOOKUP($A$118,'[8]Residual '!$A$1:$C$12,3,FALSE),"") -> 145612371 | I118: 0.8772037578 | J118: 202234936.9 | M118: 0.8773039901 | N118: 227399348.3 | Q118: 0.8774842218 | R118: 248738589 | U118: 0.880593017 | V118: 271228397.6 | Y118: 0.8885483689 | Z118: 337307964.5 | AC118: 0.8894640862 | AD118: 367537151.2
A119: 0 to 5 | B119: 0 to 5 | E119: =IFERROR(F119/F$128,0) -> 0.001706711017 | F119: =IFERROR(VLOOKUP($A$119,'[8]Residual '!$A$1:$C$12,3,FALSE),"") -> 288567.6 | I119: 0.001397856711 | J119: 322268.87 | M119: 0.001320513803 | N119: 342280.42 | Q119: 0.001276065861 | R119: 361723.68 | U119: 0.00123572368 | V119: 380610.96 | Y119: 0.001065190341 | Z119: 404364.24 | AC119: 0.001025028037 | AD119: 423553.79
A120: 6 to 10 | B120: 06 to 10 | E120: 0.002025764242 | F120: =IFERROR(VLOOKUP($A$120,'[8]Residual '!$A$1:$C$12,3,FALSE),"") -> 342512.54 | I120: 0.002039783764 | J120: 470261.94 | M120: 0.001884616407 | N120: 488497.2 | Q120: 0.001923471565 | R120: 545242.4 | U120: 0.001828560174 | V120: 563208.47 | Y120: 0.001569173482 | Z120: 595684.75 | AC120: 0.001495263858 | AD120: 617860.83
A121: 11 to 15 | B121: 11 to 15 | E121: 0.008798813613 | F121: =IFERROR(VLOOKUP($A$121,'[8]Residual '!$A$1:$C$12,3,FALSE),"") -> 1487687.43 | I121: 0.008096074481 | J121: 1866509.46 | M121: 0.007635653325 | N121: 1979180.09 | Q121: 0.008052509717 | R121: 2282627.83 | U121: 0.00800520368 | V121: 2465654.99 | Y121: 0.007683671567 | Z121: 2916851.47 | AC121: 0.007282209877 | AD121: 3009095.83
A122: 16 to 20 | B122: 16 to 20 | E122: 0.01392819517 | F122: =IFERROR(VLOOKUP($A$122,'[8]Residual '!$A$1:$C$12,3,FALSE),"") -> 2354953.95 | I122: 0.01125547838 | J122: 2594894.22 | M122: 0.01417110828 | N122: 3673186.06 | Q122: 0.01421341716 | R122: 4029047.18 | U122: 0.01365595171 | V122: 4206122.27 | Y122: 0.01234572317 | Z122: 4686644.98 | AC122: 0.01256792007 | AD122: 5193214.22
A123: 21 to 25 | B123: 21 to 25 | E123: 0.02626998461 | F123: =IFERROR(VLOOKUP($A$123,'[8]Residual '!$A$1:$C$12,3,FALSE),"") -> 4441681.3 | I123: 0.02169889993 | J123: 5002572.8 | M123: 0.02142713368 | N123: 5553965.66 | Q123: 0.01994219144 | R123: 5652970.66 | U123: 0.01946259098 | V123: 5994605.07 | Y123: 0.01730113707 | Z123: 6567803.77 | AC123: 0.0180290856 | AD123: 7449832.84
A124: 26 to 30 | B124: 26 to 30 | E124: 0.04135168914 | F124: =IFERROR(VLOOKUP($A$124,'[8]Residual '!$A$1:$C$12,3,FALSE),"") -> 6991668.52 | I124: 0.03588820872 | J124: 8273846.94 | M124: 0.03442562926 | N124: 8923207.63 | Q124: 0.03437816923 | R124: 9745106.63 | U124: 0.0325741728 | V124: 10033057.86 | Y124: 0.03085400111 | Z124: 11712699.81 | AC124: 0.02974943116 | AD124: 12292819.18
A125: 31 to 35 | B125: 31 to 35 | E125: 0.01574557126 | F125: =IFERROR(VLOOKUP($A$125,'[8]Residual '!$A$1:$C$12,3,FALSE),"") -> 2662232.6 | I125: 0.01299968106 | J125: 2997011.42 | M125: 0.01326609262 | N125: 3438603.78 | Q125: 0.0154944414 | R125: 4392176.4 | U125: 0.01524037527 | V125: 4694135.07 | Y125: 0.0136886632 | Z125: 5196447.69 | AC125: 0.01304897993 | AD125: 5391993.88
A126: 36 to 40 | B126: 36 to 40 | E126: 0.02074860541 | F126: =IFERROR(VLOOKUP($A$126,'[8]Residual '!$A$1:$C$12,3,FALSE),"") -> 3508136.53 | I126: 0.02213586673 | J126: 5103313.31 | M126: 0.02099976045 | N126: 5443189.47 | Q126: 0.01960691394 | R126: 5557930.26 | U126: 0.01864022974 | V126: 5741312.44 | Y126: 0.01909022761 | Z126: 7246972.75 | AC126: 0.01994886757 | AD126: 8243109.61
A127: 41+ % | B127: 41+% | E127: 0.008211425001 | F127: =IFERROR(VLOOKUP($A$127,'[8]Residual '!$A$1:$C$12,3,FALSE),"") -> 1388372.83 | I127: 0.00728439241 | J127: 1679380.22 | M127: 0.007565502099 | N127: 1960996.72 | Q127: 0.007628597874 | R127: 2162462.44 | U127: 0.008764174997 | V127: 2699423.11 | Y127: 0.007853843581 | Z127: 2981451.64 | AC127: 0.007389127706 | AD127: 3053275.55
E128: =SUM(E118:E127) -> 1 | F128: =SUM(F118:F127) -> 169078184.3 | G128: =F115-F128 -> 0 | I128: 1 | J128: 230544996.1 | K128: 2.682209015e-07 | M128: 1 | N128: 259202455.3 | O128: 0 | Q128: 1 | R128: 283467876.5 | S128: 0 | U128: 1 | V128: 308006527.8 | W128: 4.768371582e-07 | Y128: 1 | Z128: 379616885.6 | AA128: -9.536743164e-07 | AC128: 1 | AD128: 413211906.9 | AE128: -8.940696716e-07
A129: 2004 Q1
A130: 2004 Q2 | B130: Quarter of Maturity Distribution
A131: =RIGHT(B131,2)&LEFT(B131,4) -> Q12017 | B131: 2017Q1 | E131: =F131/F$160 -> 0 | F131: =IFERROR(VLOOKUP($A$131,'[8]Quarter of Maturity Dist'!$A$1:$C$18,3,FALSE),0) -> 0 | I131: 0 | J131: 0 | M131: 0 | N131: 0 | Q131: 0 | R131: 0 | U131: 0 | V131: 0 | Y131: 0 | Z131: 0 | AC131: 0 | AD131: 0
A132: Q22017 | B132: 2017Q2 | E132: 0 | F132: =IFERROR(VLOOKUP($A$132,'[8]Quarter of Maturity Dist'!$A$1:$C$18,3,FALSE),0) -> 0 | I132: 0 | J132: 0 | M132: 0 | N132: 0 | Q132: 0 | R132: 0 | U132: 0 | V132: 0 | Y132: 0 | Z132: 0 | AC132: 0 | AD132: 0
A133: =RIGHT(B133,2)&LEFT(B133,4) -> Q32017 | B133: 2017Q3 | E133: 0 | F133: =IFERROR(VLOOKUP($A$133,'[8]Quarter of Maturity Dist'!$A$1:$C$18,3,FALSE),0) -> 0 | I133: 0 | J133: 0 | M133: 0 | N133: 0 | Q133: 0 | R133: 0 | U133: 0 | V133: 0 | Y133: 0 | Z133: 0 | AC133: 0 | AD133: 0
A134: =RIGHT(B134,2)&LEFT(B134,4) -> Q42017 | B134: 2017Q4 | E134: 0 | F134: =IFERROR(VLOOKUP($A$134,'[8]Quarter of Maturity Dist'!$A$1:$C$18,3,FALSE),0) -> 0 | I134: 0 | J134: 0 | M134: 0 | N134: 0 | Q134: 0 | R134: 0 | U134: 3.961909537e-05 | V134: 12202.94 | Y134: 3.214540887e-05 | Z134: 12202.94 | AC134: 0.003945455038 | AD134: 1630309
A135: Q12018 | B135: 2018Q1 | E135: 0 | F135: =IFERROR(VLOOKUP($A$135,'[8]Quarter of Maturity Dist'!$A$1:$C$18,3,FALSE),0) -> 0 | I135: 0 | J135: 0 | M135: 0 | N135: 0 | Q135: 3.470463787e-05 | R135: 9837.65 | U135: 0.0002433158821 | V135: 74942.88 | Y135: 0.01802645059 | Z135: 6843145.03 | AC135: 0.01991999631 | AD135: 8231179.66
A136: Q22018 | B136: 2018Q2 | E136: 0 | F136: =IFERROR(VLOOKUP($A$136,'[8]Quarter of Maturity Dist'!$A$1:$C$18,3,FALSE),0) -> 0 | I136: 0 | J136: 0 | M136: 0 | N136: 0 | Q136: 7.971114851e-05 | R136: 22595.55 | U136: 0.003152484939 | V136: 970985.94 | Y136: 0.007094925811 | Z136: 2693353.64 | AC136: 0.007131838218 | AD136: 2946960.47
A137: Q32018 | B137: 2018Q3 | E137: 0 | F137: =IFERROR(VLOOKUP($A$137,'[8]Quarter of Maturity Dist'!$A$1:$C$18,3,FALSE),0) -> 0 | I137: 0 | J137: 0 | M137: 4.949995548e-05 | N137: 12830.51 | Q137: 0.004029906613 | R137: 1142349.07 | U137: 0.007376941411 | V137: 2272146.11 | Y137: 0.008414043556 | Z137: 3194113.01 | AC137: 0.009338324466 | AD137: 3858706.86
A138: Q42018 | B138: 2018Q4 | E138: 0 | F138: =IFERROR(VLOOKUP($A$138,'[8]Quarter of Maturity Dist'!$A$1:$C$18,3,FALSE),0) -> 0 | I138: 0 | J138: 0 | M138: 0.009014992728 | N138: 2336708.25 | Q138: 0.01318874352 | R138: 3738585.12 | U138: 0.01534818902 | V138: 4727342.41 | Y138: 0.01498415264 | Z138: 5688237.36 | AC138: 0.02031692955 | AD138: 8395197.2
A139: Q12019 | B139: 2019Q1 | E139: 0.0002073922791 | F139: =IFERROR(VLOOKUP($A$139,'[8]Quarter of Maturity Dist'!$A$1:$C$18,3,FALSE),0) -> 35065.51 | I139: 0.02796843748 | J139: 6447983.31 | M139: 0.03290070628 | N139: 8527943.85 | Q139: 0.03378611735 | R139: 9577278.94 | U139: 0.03371874344 | V139: 10385593.09 | Y139: 0.04713463136 | Z139: 17893101.96 | AC139: 0.04936511642 | AD139: 20398253.89
A140: Q22019 | B140: 2019Q2 | E140: 0.008902343882 | F140: =IFERROR(VLOOKUP($A$140,'[8]Quarter of Maturity Dist'!$A$1:$C$18,3,FALSE),0) -> 1505192.14 | I140: 0.01748222376 | J140: 4030439.21 | M140: 0.01794438723 | N140: 4651229.23 | Q140: 0.01809009505 | R140: 5127960.83 | U140: 0.02343397817 | V140: 7217818.25 | Y140: 0.02571455425 | Z140: 9761679 | AC140: 0.02511903134 | AD140: 10379482.84
A141: Q32019 | B141: 2019Q3 | E141: 0.02533627734 | F141: =IFERROR(VLOOKUP($A$141,'[8]Quarter of Maturity Dist'!$A$1:$C$18,3,FALSE),0) -> 4283811.77 | I141: 0.02598799467 | J141: 5991402.13 | M141: 0.02624524706 | N141: 6802832.48 | Q141: 0.03160217528 | R141: 8958201.52 | U141: 0.03343129833 | V141: 10297058.12 | Y141: 0.03186004403 | Z141: 12094610.69 | AC141: 0.03136783462 | AD141: 12961562.76
A142: Q42019 | B142: 2019Q4 | E142: 0.03575942262 | F142: =IFERROR(VLOOKUP($A$142,'[8]Quarter of Maturity Dist'!$A$1:$C$18,3,FALSE),0) -> 6046138.25 | I142: 0.03743632365 | J142: 8630757.09 | M142: 0.04412191646 | N142: 11436509.08 | Q142: 0.04766923751 | R142: 13512697.53 | U142: 0.04783211834 | V142: 14732604.69 | Y142: 0.04530869601 | Z142: 17199946.07 | AC142: 0.04999752351 | AD142: 20659572.03
A143: Q12020 | B143: 2020Q1 | E143: 0.08547940816 | F143: =IFERROR(VLOOKUP($A$143,'[8]Quarter of Maturity Dist'!$A$1:$C$18,3,FALSE),0) -> 14452703.13 | I143: 0.1107171156 | J143: 25525276.98 | M143: 0.1103709998 | N143: 28608434.15 | Q143: 0.1054939126 | R143: 29904135.38 | U143: 0.1003877087 | V143: 30920069.58 | Y143: 0.1119989689 | Z143: 42516699.75 | AC143: 0.1117071704 | AD143: 46158732.89
A144: Q22020 | B144: 2020Q2 | E144: 0.05649952433 | F144: =IFERROR(VLOOKUP($A$144,'[8]Quarter of Maturity Dist'!$A$1:$C$18,3,FALSE),0) -> 9552836.99 | I144: 0.05403139296 | J144: 12456667.28 | M144: 0.05159009259 | N144: 13372278.67 | Q144: 0.04994868637 | R144: 14158848.06 | U144: 0.0543140334 | V144: 16729076.84 | Y144: 0.0515505957 | Z144: 19569476.59 | AC144: 0.04909839581 | AD144: 20288041.76
A145: Q32020 | B145: 2020Q3 | E145: 0.03601760809 | F145: =IFERROR(VLOOKUP($A$145,'[8]Quarter of Maturity Dist'!$A$1:$C$18,3,FALSE),0) -> 6089791.78 | I145: 0.02982484797 | J145: 6875969.46 | M145: 0.02936142044 | N145: 7610552.27 | Q145: 0.03313611523 | R145: 9393024.22 | U145: 0.03486569027 | V145: 10738860.2 | Y145: 0.03083806515 | Z145: 11706650.25 | AC145: 0.0300049095 | AD145: 12398385.87
A146: Q42020 | B146: 2020Q4 | E146: 0.06534463954 | F146: =IFERROR(VLOOKUP($A$146,'[8]Quarter of Maturity Dist'!$A$1:$C$18,3,FALSE),0) -> 11048353.01 | I146: 0.05458060167 | J146: 12583284.6 | M146: 0.05977041807 | N146: 15492639.12 | Q146: 0.05989638794 | R146: 16978701.9 | U146: 0.05966439955 | V146: 18377024.54 | Y146: 0.05267509207 | Z146: 19996354.4 | AC146: 0.05589905756 | AD146: 23098156.17
A147: Q12021 | B147: 2021Q1 | E147: 0.2363526746 | F147: =IFERROR(VLOOKUP($A$147,'[8]Quarter of Maturity Dist'!$A$1:$C$18,3,FALSE),0) -> 39962081.09 | I147: 0.2461569953 | J147: 56750263.54 | M147: 0.238106077 | N147: 61717679.8 | Q147: 0.2282993084 | R147: 64715520.15 | U147: 0.2154565558 | V147: 66362025.65 | Y147: 0.2153456302 | Z147: 81748837.45 | AC147: 0.2103707266 | AD147: 86927689.11
A148: Q22021 | B148: 2021Q2 | E148: 0.1129301895 | F148: =IFERROR(VLOOKUP($A$148,'[8]Quarter of Maturity Dist'!$A$1:$C$18,3,FALSE),0) -> 19094031.39 | I148: 0.102540508 | J148: 23640201.01 | M148: 0.09704571755 | N148: 25154488.27 | Q148: 0.09308934045 | R148: 26387837.66 | U148: 0.09838185055 | V148: 30302252.19 | Y148: 0.09232535446 | Z148: 35048263.52 | AC148: 0.08705164377 | AD148: 35970775.72
A149: Q32021 | B149: 2021Q3 | E149: 0.08484745218 | F149: =IFERROR(VLOOKUP($A$149,'[8]Quarter of Maturity Dist'!$A$1:$C$18,3,FALSE),0) -> 14345853.16 | I149: 0.0721708816 | J149: 16638635.62 | M149: 0.07144807469 | N149: 18519516.39 | Q149: 0.07517430897 | R149: 21309501.73 | U149: 0.07358658003 | V149: 22665147.01 | Y149: 0.06489385635 | Z149: 24634803.64 | AC149: 0.06262896005 | AD149: 25879032.01
A150: Q42021 | B150: 2021Q4 | E150: 0.1068604742 | F150: =IFERROR(VLOOKUP($A$150,'[8]Quarter of Maturity Dist'!$A$1:$C$18,3,FALSE),0) -> 18067774.96 | I150: 0.08596537714 | J150: 19818887.54 | M150: 0.08510467612 | N150: 22059341.01 | Q150: 0.08720539433 | R150: 24719927.95 | U150: 0.08546580784 | V150: 26324026.72 | Y150: 0.07480490149 | Z150: 28397203.73 | AC150: 0.07427272067 | AD150: 30690372.54
A151: Q12022 | B151: 2022Q1 | E151: 0.1348109732 | F151: =IFERROR(VLOOKUP($A$151,'[8]Quarter of Maturity Dist'!$A$1:$C$18,3,FALSE),0) -> 22793594.57 | I151: 0.1254554161 | J151: 28923118.42 | M151: 0.1181593432 | N151: 30627191.87 | Q151: 0.1108671465 | R151: 31427274.59 | U151: 0.1053348387 | V151: 32443817.93 | Y151: 0.09974710899 | Z151: 37865686.86 | AC151: 0.09570889514 | AD151: 39548055.07
A152: Q22022 | B152: 2022Q2 | E152: 0.002845217565 | F152: =IFERROR(VLOOKUP($A$152,'[8]Quarter of Maturity Dist'!$A$1:$C$18,3,FALSE),0) -> 481064.22 | I152: 0.00262191685 | J152: 604469.81 | M152: 0.002365172966 | N152: 613058.64 | Q152: 0.002192861314 | R152: 621605.74 | U152: 0.002045772583 | V152: 630111.31 | Y152: 0.001973214676 | Z152: 749065.61 | AC152: 0.001833172514 | AD152: 757488.71
A153: Q32022 | B153: 2022Q3 | E153: 0.004236450804 | F153: =IFERROR(VLOOKUP($A$153,'[8]Quarter of Maturity Dist'!$A$1:$C$18,3,FALSE),0) -> 716291.41 | I153: 0.003917705286 | J153: 903207.35 | M153: 0.003606404765 | N153: 934788.97 | Q153: 0.003523908961 | R153: 998914.99 | U153: 0.003442600803 | V153: 1060343.52 | Y153: 0.002958980811 | Z153: 1123279.08 | AC153: 0.00279221707 | AD153: 1153777.34
A154: Q42022 | B154: 2022Q4 | E154: 0.00356995175 | F154: =IFERROR(VLOOKUP($A$154,'[8]Quarter of Maturity Dist'!$A$1:$C$18,3,FALSE),0) -> 603600.96 | I154: 0.003142261997 | J154: 724432.78 | M154: 0.002794853077 | N154: 724432.78 | Q154: 0.002691937864 | R154: 763077.91 | U154: 0.002477473174 | V154: 763077.91 | Y154: 0.002318587617 | Z154: 880175.01 | AC154: 0.002130081431 | AD154: 880175.01
A155: Q12023 | B155: 2023Q1 | E155: 0 | F155: =IFERROR(VLOOKUP($A$155,'[8]Quarter of Maturity Dist'!$A$1:$C$18,3,FALSE),0) -> 0 | I155: 0 | J155: 0 | M155: 0 | N155: 0 | Q155: 0 | R155: 0 | U155: 0 | V155: 0 | Y155: 0 | Z155: 0 | AC155: 0 | AD155: 0
A156: Q22023 | B156: 2023Q2 | E156: 0 | F156: =IFERROR(VLOOKUP($A$156,'[8]Quarter of Maturity Dist'!$A$1:$C$18,3,FALSE),0) -> 0 | I156: 0 | J156: 0 | M156: 0 | N156: 0 | Q156: 0 | R156: 0 | U156: 0 | V156: 0 | Y156: 0 | Z156: 0 | AC156: 0 | AD156: 0
A157: Q32023 | B157: 2023Q3 | E157: 0 | F157: =IFERROR(VLOOKUP($A$157,'[8]Quarter of Maturity Dist'!$A$1:$C$18,3,FALSE),0) -> 0 | I157: 0 | J157: 0 | M157: 0 | N157: 0 | Q157: 0 | R157: 0 | U157: 0 | V157: 0 | Y157: 0 | Z157: 0 | AC157: 0 | AD157: 0
A158: Q42023 | B158: 2023Q4 | E158: 0 | F158: =IFERROR(VLOOKUP($A$158,'[8]Quarter of Maturity Dist'!$A$1:$C$18,3,FALSE),0) -> 0 | I158: 0 | J158: 0 | M158: 0 | N158: 0 | Q158: 0 | R158: 0 | U158: 0 | V158: 0 | Y158: 0 | Z158: 0 | AC158: 0 | AD158: 0
E160: =SUM(E131:E158) -> 1 | F160: =SUM(F131:F159) -> 169078184.3 | G160: =F128-F160 -> 0 | I160: 1 | J160: 230544996.1 | K160: -2.682209015e-07 | M160: 1 | N160: 259202455.3 | O160: 0 | Q160: 1 | R160: 283467876.5 | S160: 0 | U160: 1 | V160: 308006527.8 | W160: -5.960464478e-07 | Y160: 1 | Z160: 379616885.6 | AA160: 9.536743164e-07 | AC160: 1 | AD160: 413211906.9 | AE160: 8.940696716e-07
A161: 0 to 6 months
A162: 07 to 12 months | B162: Seasoning Distribution
A163: 0 to 6 months | B163: 0 to 6 months | E163: =F163/F$174 -> 0 | F163: =IFERROR(VLOOKUP($A$163,'[8]Seasoning Distribution'!$A$1:$C$9,3,FALSE),0) -> 0 | I163: 0 | J163: 0 | M163: 0 | N163: 0 | Q163: 0 | R163: 0 | U163: 0 | V163: 0 | Y163: 0 | Z163: 0 | AC163: 0 | AD163: 0
A164: 07 to 12 months | B164: 07 to 12 months | E164: =F164/F$174 -> 0 | F164: =IFERROR(VLOOKUP($A$164,'[8]Seasoning Distribution'!$A$1:$C$9,3,FALSE),0) -> 0 | I164: 0 | J164: 0 | M164: 0 | N164: 0 | Q164: 0 | R164: 0 | U164: 0 | V164: 0 | Y164: 0.0965693833 | Z164: 36659368.53 | AC164: 0.2374555966 | AD164: 98119479.87
A165: 13 to 18 months | B165: 13 to 18 months | E165: 0 | F165: =IFERROR(VLOOKUP($A$165,'[8]Seasoning Distribution'!$A$1:$C$9,3,FALSE),0) -> 0 | I165: 0 | J165: 0 | M165: 0 | N165: 0 | Q165: 0.1030341829 | R165: 29206881.04 | U165: 0.2570131227 | V165: 79161719.52 | Y165: 0.3801154365 | Z165: 144298238.2 | AC165: 0.3472620226 | AD165: 143492802.6
A166: 19 to 24 months | B166: 19 to 24 months | E166: 0 | F166: =IFERROR(VLOOKUP($A$166,'[8]Seasoning Distribution'!$A$1:$C$9,3,FALSE),0) -> 0 | I166: 0.1179971966 | J166: 27203663.24 | M166: 0.2674340548 | N166: 69319563.65 | Q166: 0.4089779942 | R166: 115932123.5 | U166: 0.3716168422 | V166: 114460413.2 | Y166: 0.2671192661 | Z166: 101402983.9 | AC166: 0.2463876031 | AD166: 101810291.3
A167: 25 to 30 months | B167: 25 to 30 months | E167: 0.2944357059 | F167: =IFERROR(VLOOKUP($A$167,'[8]Seasoning Distribution'!$A$1:$C$9,3,FALSE),0) -> 49782654.55 | I167: 0.4078437568 | J167: 94026337.33 | M167: 0.371685066 | N167: 96341681.73 | Q167: 0.2634479782 | R167: 74679038.94 | U167: 0.2408304645 | V167: 74177355.18 | Y167: 0.1924476904 | Z167: 73056392.86 | AC167: 0.1022653242 | AD167: 42257249.61
A168: 31 to 36 months | B168: 31 to 36 months | E168: =F168/F$174 -> 0.3898494571 | F168: =IFERROR(VLOOKUP($A$168,'[8]Seasoning Distribution'!$A$1:$C$9,3,FALSE),0) -> 65915038.38 | I168: 0.2738922835 | J168: 63144495.45 | M168: 0.2465852696 | N168: 63915507.34 | Q168: 0.1889817303 | R168: 53570249.79 | U168: 0.09601949228 | V168: 29574630.42 | Y168: 0.01837348452 | Z168: 6974884.97 | AC168: 0.02774877686 | AD168: 11466125
A169: 37 to 42 months | B169: 37 to 42 months | E169: =F169/F$174 -> 0.2270940117 | F169: =IFERROR(VLOOKUP($A$169,'[8]Seasoning Distribution'!$A$1:$C$9,3,FALSE),0) -> 38396643.17 | I169: 0.1754268927 | J169: 40443792.29 | M169: 0.08816194187 | N169: 22851791.8 | Q169: 0.01340197728 | R169: 3799030.04 | U169: 0.0183355347 | V169: 5647464.38 | Y169: 0.02358188266 | Z169: 8952080.85 | AC169: 0.01600145777 | AD169: 6611992.88
A170: 43 to 48 months | B170: 43 to 48 months | E170: 0.07655690768 | F170: =IFERROR(VLOOKUP($A$170,'[8]Seasoning Distribution'!$A$1:$C$9,3,FALSE),0) -> 12944102.95 | I170: 0.01174261773 | J170: 2707201.76 | M170: 0.01739838314 | N170: 4509703.63 | Q170: 0.01820991064 | R170: 5161924.7 | U170: 0.01116618126 | V170: 3439256.72 | Y170: 0.003812930391 | Z170: 1447452.76 | AC170: 0.003811643623 | AD170: 1575016.53
A171: 49 to 54 months | B171: 49 to 54 months | E171: 0.007954522845 | F171: =IFERROR(VLOOKUP($A$171,'[8]Seasoning Distribution'!$A$1:$C$9,3,FALSE),0) -> 1344936.28 | I171: 0.01136966143 | J171: 2621218.55 | M171: 0.00803642858 | N171: 2083062.02 | Q171: 0.00179464254 | R171: 508723.51 | U171: 0.001329172284 | V171: 409393.74 | Y171: 0.01039077559 | Z171: 3944513.87 | AC171: 0.01010252749 | AD171: 4174484.65
A172: 55 to 60 months | B172: 55 to 60 months | E172: 0.003785679522 | F172: =IFERROR(VLOOKUP($A$172,'[8]Seasoning Distribution'!$A$1:$C$9,3,FALSE),0) -> 640075.82 | I172: 0.001727591215 | J172: 398287.51 | M172: 0.0006988559185 | N172: 181145.17 | Q172: 0.0021168793 | R172: 600067.28 | U172: 0.00324386745 | V172: 999132.35 | Y172: 0.006141230853 | Z172: 2331314.93 | AC172: 0.008008866745 | AD172: 3309359.1
A173: 60+ months | B173: 61 to 72 months | E173: 0.0003237152694 | F173: =IFERROR(VLOOKUP($A$173,'[8]Seasoning Distribution'!$A$1:$C$9,3,FALSE),0) -> 54733.19 | I173: 0 | J173: 0 | M173: 0 | N173: 0 | Q173: 3.470463787e-05 | R173: 9837.65 | U173: 0.0004453226396 | V173: 137162.28 | Y173: 0.001447919708 | Z173: 549654.77 | AC173: 0.0009561810862 | AD173: 395105.41
A174: 61 to 72 months | B174: Total | E174: =SUM(E163:E173) -> 1 | F174: =SUM(F163:F173) -> 169078184.3 | G174: =F160-F174 -> 0 | I174: 1 | J174: 230544996.1 | K174: 0 | M174: 1 | N174: 259202455.3 | O174: 0 | Q174: 1 | R174: 283467876.5 | S174: 0 | U174: 1 | V174: 308006527.8 | W174: 0 | Y174: 1 | Z174: 379616885.6 | AA174: 0 | AC174: 1 | AD174: 413211906.9 | AE174: 0
B176: Remaining Term Distribution
A177: 0 - 12 months | B177: 0-12 Months | E177: =F177/$Z$183 -> 0.08055785928 | F177: =IFERROR(VLOOKUP($A$177,'[8]Remaining Term'!$A$1:$C$6,3,FALSE),0) -> 30581123.65 | I177: 0.08410484834 | J177: 31927620.59 | M177: 0 | N177: 0 | Q177: 0.05807324183 | R177: 22045583.2 | U177: 0.05870977893 | V177: 22287223.43 | Y177: 0.06014410885 | Z177: 22831719.29 | AC177: 0.04639543271 | AD177: 19171145.22
A178: 13 - 24 months | B178: 13-24 Months | E178: =F178/$Z$183 -> 0.191597561 | F178: =IFERROR(VLOOKUP($A$178,'[8]Remaining Term'!$A$1:$C$6,3,FALSE),0) -> 72733669.38 | I178: 0.1780208588 | J178: 67579723.97 | M178: 0 | N178: 0 | Q178: 0.1776035447 | R178: 67421304.49 | U178: 0.1780148815 | V178: 67577454.9 | Y178: 0.1711015194 | Z178: 64953025.9 | AC178: 0.1472166778 | AD178: 60831684.17
A179: 25 - 36 months | B179: 25-36 Months | E179: 0.1697593057 | F179: =IFERROR(VLOOKUP($A$179,'[8]Remaining Term'!$A$1:$C$6,3,FALSE),0) -> 64443498.94 | I179: 0.2875138851 | J179: 109145125.6 | M179: 0 | N179: 0 | Q179: 0.319608924 | R179: 121328944.3 | U179: 0.3183888919 | V179: 120865799.6 | Y179: 0.2821092631 | Z179: 107093439.8 | AC179: 0.2398999811 | AD179: 99129528.66
A180: 37 - 48 months | B180: 37-48 Months | E180: =F180/$Z$183 -> 0.003476906376 | F180: =IFERROR(VLOOKUP($A$180,'[8]Remaining Term'!$A$1:$C$6,3,FALSE),0) -> 1319892.37 | I180: 0.05767005305 | J180: 21892525.93 | M180: 0 | N180: 0 | Q180: 0.1872688621 | R180: 71090422.2 | U180: 0.2514446331 | V180: 95452628.51 | Y180: 0.4105698103 | Z180: 155859232.7 | AC180: 0.4170755636 | AD180: 172340589
A181: 49 - 60 months | B181: 49-60 Months | E181: =F181/$Z$183 -> 0 | F181: =IFERROR(VLOOKUP($A$181,'[8]Remaining Term'!$A$1:$C$6,3,FALSE),0) -> 0 | I181: 0 | J181: 0 | M181: 0 | N181: 0 | Q181: 0.004166364353 | R181: 1581622.26 | U181: 0.004803320135 | V181: 1823421.43 | Y181: 0.07607529843 | Z181: 28879467.86 | AC181: 0.1485629116 | AD181: 61387963.99
A182: 60+ Months | B182: 60+ Months | E182: 0 | F182: =IFERROR(VLOOKUP($A$182,'[8]Remaining Term'!$A$1:$C$6,3,FALSE),0) -> 0 | I182: 0 | J182: 0 | M182: 0 | N182: 0 | Q182: 0 | R182: 0 | U182: 0 | V182: 0 | Y182: 0 | Z182: 0 | AC182: 0.0008494331459 | AD182: 350995.89
E183: =SUM(E177:E182) -> 0.4453916323 | F183: =SUM(F177:F182) -> 169078184.3 | G183: =F174-F183 -> 0 | I183: 0.6073096453 | J183: 230544996.1 | K183: 0 | M183: 0 | N183: 0 | O183: 259202455.3 | Q183: 0.746720937 | R183: 283467876.5 | S183: 0 | U183: 0.8113615056 | V183: 308006527.8 | W183: 0 | Y183: 1 | Z183: 379616885.6 | AA183: 0 | AC183: 1 | AD183: 413211906.9 | AE183: 0
B185: Origination LVR Distribution
A186: 01. 10% to 20% | B186: 10% to 20% | E186: =F186/F$202 -> 0 | F186: =IFERROR(VLOOKUP($A$186,'[8]LVR Band'!$A$1:$C$10,3,FALSE),0) -> 0 | I186: 0 | J186: 0 | M186: 9.97814622e-06 | N186: 2586.36 | Q186: 1.821455067e-05 | R186: 5163.24 | U186: 2.509946804e-05 | V186: 7730.8 | Y186: 4.70388981e-05 | Z186: 17856.76 | AC186: 4.93833301e-05 | AD186: 20405.78
A187: 02. 21% to 30% | B187: 21% to 30% | E187: 0.003039292396 | F187: =IFERROR(VLOOKUP($A$187,'[8]LVR Band'!$A$1:$C$10,3,FALSE),0) -> 513878.04 | I187: 0.003820722092 | J187: 880848.36 | M187: 0.004250190873 | N187: 1101659.91 | Q187: 0.004010594936 | R187: 1136874.83 | U187: 0.00395723587 | V187: 1218854.48 | Y187: 0.004435696419 | Z187: 1683865.26 | AC187: 0.004684865798 | AD187: 1935842.33
A188: 03. 31% to 40% | B188: 31% to 40% | E188: 0.02433848096 | F188: =IFERROR(VLOOKUP($A$188,'[8]LVR Band'!$A$1:$C$10,3,FALSE),0) -> 4115106.17 | I188: 0.02783739829 | J188: 6417772.88 | M188: 0.0272856636 | N188: 7072511 | Q188: 0.02609465846 | R188: 7396997.42 | U188: 0.02632866504 | V188: 8109400.7 | Y188: 0.02973663129 | Z188: 11288527.36 | AC188: 0.02931032704 | AD188: 12111376.13
A189: 04. 41% to 50% | B189: 41% to 50% | E189: 0.07554254376 | F189: =IFERROR(VLOOKUP($A$189,'[8]LVR Band'!$A$1:$C$10,3,FALSE),0) -> 12772596.14 | I189: 0.08115137073 | J189: 18709042.45 | M189: 0.07886863542 | N189: 20442943.95 | Q189: 0.07653584085 | R189: 21695452.28 | U189: 0.07541895369 | V189: 23229530.06 | Y189: 0.08146876989 | Z189: 30926920.7 | AC189: 0.07967888751 | AD189: 32924265.05
A190: 05. 51% to 60% | B190: 51% to 60% | E190: 0.1375303034 | F190: =IFERROR(VLOOKUP($A$190,'[8]LVR Band'!$A$1:$C$10,3,FALSE),0) -> 23253373.99 | I190: 0.1432017471 | J190: 33014446.23 | M190: 0.146598494 | N190: 37998689.59 | Q190: 0.1482376872 | R190: 42020622.42 | U190: 0.1458851981 | V190: 44933593.32 | Y190: 0.1501472998 | Z190: 56998450.32 | AC190: 0.1501788427 | AD190: 62055685.97
A191: 06. 61% to 70% | B191: 61% to 70% | E191: 0.1704746584 | F191: =IFERROR(VLOOKUP($A$191,'[8]LVR Band'!$A$1:$C$10,3,FALSE),0) -> 28823545.72 | I191: 0.1712269119 | J191: 39475507.74 | M191: 0.1703045752 | N191: 44143364.06 | Q191: 0.1709908958 | R191: 48470426.13 | U191: 0.1730389011 | V191: 53297111.11 | Y191: 0.1738547659 | Z191: 65998204.77 | AC191: 0.1724969671 | AD191: 71277800.73
A192: 07. 71% to 80% | B192: 71% to 80% | E192: 0.1920017913 | F192: =IFERROR(VLOOKUP($A$192,'[8]LVR Band'!$A$1:$C$10,3,FALSE),0) -> 32463314.27 | I192: 0.1879657766 | J192: 43334569.25 | M192: 0.1916103455 | N192: 49665872.01 | Q192: 0.1929706978 | R192: 54700993.93 | U192: 0.1926284435 | V192: 59330818.03 | Y192: 0.1925829754 | Z192: 73107749.33 | AC192: 0.1933851325 | AD192: 79909039.36
A193: 08. 81% to 90% | B193: 81% to 90% | E193: 0.2341313384 | F193: =IFERROR(VLOOKUP($A$193,'[8]LVR Band'!$A$1:$C$10,3,FALSE),0) -> 39586501.6 | I193: 0.2242652067 | J193: 51703221.2 | M193: 0.2240360866 | N193: 58070703.72 | Q193: 0.2267507568 | R193: 64276555.51 | U193: 0.2303143052 | V193: 70938309.46 | Y193: 0.2216987827 | Z193: 84160601.42 | AC193: 0.2228608002 | AD193: 92088736.22
A194: 09. 91% to 100% | B194: 91% to 100% | E194: 0.1629415913 | F194: =IFERROR(VLOOKUP($A$194,'[8]LVR Band'!$A$1:$C$10,3,FALSE),0) -> 27549868.41 | I194: 0.1605308666 | J194: 37009588.02 | M194: 0.1570360307 | N194: 40704124.74 | Q194: 0.1543906536 | R194: 43764790.73 | U194: 0.1524031981 | V194: 46941179.87 | Y194: 0.1460280398 | Z194: 55434709.67 | AC194: 0.1473547938 | AD194: 60888755.34
A195: > 100% | B195: > 100% | E195: 0 | F195: =IFERROR(VLOOKUP($A$195,'[8]LVR Band'!$A$1:$C$10,3,FALSE),0) -> 0 | I195: 0 | J195: 0 | M195: 0 | N195: 0 | Q195: 0 | R195: 0 | U195: 0 | V195: 0 | Y195: 0 | Z195: 0 | AC195: 0 | AD195: 0
E196: =SUM(E186:E195) -> 1 | F196: =SUM(F186:F195) -> 169078184.3 | G196: =F183-F196 -> 0 | I196: 1 | J196: 230544996.1 | K196: 2.682209015e-07 | M196: 1 | N196: 259202455.3 | O196: -259202455.3 | Q196: 1 | R196: 283467876.5 | S196: 0 | U196: 1 | V196: 308006527.8 | W196: 0 | Y196: 1 | Z196: 379616885.6 | AA196: 0 | AC196: 1 | AD196: 413211906.9 | AE196: 0
B198: New v Used
A199: New | B199: New | E199: =F199/F$202 -> 0.9644671499 | F199: =IFERROR(VLOOKUP($A$199,'[8]New v Used'!$A$1:$C$4,3,FALSE),0) -> 163070354.6 | I199: 0.9576804847 | J199: 220788443.6 | M199: 0.9589157341 | N199: 248553312.7 | Q199: 0.9572504664 | R199: 271349757 | U199: 0.9567349069 | V199: 294680596.7 | Y199: 0.95121893 | Z199: 361098767.7 | AC199: 0.9486824561 | AD199: 392006886.7
A200: USed | B200: Used | E200: =F200/F$202 -> 0.0355328501 | F200: =IFERROR(VLOOKUP($A$200,'[8]New v Used'!$A$1:$C$4,3,FALSE),0) -> 6007829.78 | I200: 0.0423195153 | J200: 9756552.49 | M200: 0.04108426587 | N200: 10649142.59 | Q200: 0.04274953363 | R200: 12118119.52 | U200: 0.04326509306 | V200: 13325931.09 | Y200: 0.04878107003 | Z200: 18518117.88 | AC200: 0.05131754389 | AD200: 21205020.17
A201: Used
E202: =SUM(E199:E200) -> 1 | F202: =SUM(F199:F200) -> 169078184.3 | G202: =F196-F202 -> 0 | I202: 1 | J202: 230544996.1 | K202: 3.278255463e-07 | M202: 1 | N202: 259202455.3 | O202: 0 | Q202: 1 | R202: 283467876.5 | S202: 0 | U202: 1 | V202: 308006527.8 | W202: 1.013278961e-06 | Y202: 1 | Z202: 379616885.6 | AA202: -1.132488251e-06 | AC202: 1 | AD202: 413211906.9 | AE202: -6.556510925e-07
B204: Contract Type
A205: Finance Lease | B205: Finance Lease | E205: =F205/F$208 -> 0.0144989604 | F205: =IFERROR(VLOOKUP($A$205,'[8]Loan Type'!$A$1:$C$4,3,FALSE),0) -> 2451457.9 | I205: 0.01518218091 | J205: 3500175.84 | M205: 0.01500192051 | N205: 3888534.63 | Q205: 0.01435564149 | R205: 4069363.21 | U205: 0.01464533451 | V205: 4510858.63 | Y205: 0.01341280608 | Z205: 5091727.67 | AC205: 0.0127812331 | AD205: 5281357.7
A206: Goods Mortgage | B206: Goods Mortgage | E206: =F206/F$208 -> 0.9855010396 | F206: =IFERROR(VLOOKUP($A$206,'[8]Loan Type'!$A$1:$C$4,3,FALSE),0) -> 166626726.4 | I206: 0.9848178191 | J206: 227044820.3 | M206: 0.9849980795 | N206: 255313920.7 | Q206: 0.9856443585 | R206: 279398513.3 | U206: 0.9853546655 | V206: 303495669.2 | Y206: 0.9865871939 | Z206: 374525157.9 | AC206: 0.9872187669 | AD206: 407930549.2
A207: Hire Purchase | B207: Hire Purchase | E207: 0 | F207: =IFERROR(VLOOKUP($A$207,'[8]Loan Type'!$A$1:$C$4,3,FALSE),0) -> 0 | I207: 0 | J207: 0 | M207: 0 | N207: 0 | Q207: 0 | R207: 0 | U207: 0 | V207: 0 | Y207: 0 | Z207: 0 | AC207: 0 | AD207: 0
E208: =SUM(E205:E207) -> 1 | F208: =SUM(F205:F207) -> 169078184.3 | G208: =F202-F208 -> 2.384185791e-07 | I208: 1 | J208: 230544996.1 | K208: 0 | M208: 1 | N208: 259202455.3 | O208: 0 | Q208: 1 | R208: 283467876.5 | S208: 0 | U208: 1 | V208: 308006527.8 | W208: 0 | Y208: 1 | Z208: 379616885.6 | AA208: 0 | AC208: 1 | AD208: 413211906.9 | AE208: 0
B210: Contract by Source
A211: Non Hardship Refinance | B211: Non Hardship Refinance | E211: =F211/F$213 -> 0.9982032269 | F211: =VLOOKUP($A$211,'[8]Refinance vs Hardship'!$A$1:$C$4,3,FALSE) -> 168774389.2 | I211: 0.9982712566 | J211: 230146443 | M211: 0.9981666566 | N211: 258727248.2 | Q211: 0.9978071186 | R211: 282846265 | U211: 0.9974630596 | V211: 307225133.6 | Y211: 0.9964280391 | Z211: 378260908.9 | AC211: 0.9958751131 | AD211: 411507454.5
A212: Refinance - Hardship | B212: Hardship Refinance | E212: =F212/F$213 -> 0.001796773139 | F212: =VLOOKUP($A$212,'[8]Refinance vs Hardship'!$A$1:$C$4,3,FALSE) -> 303795.14 | I212: 0.001728743398 | J212: 398553.14 | M212: 0.001833343397 | N212: 475207.11 | Q212: 0.002192881422 | R212: 621611.44 | U212: 0.002536940387 | V212: 781394.2 | Y212: 0.003571960894 | Z212: 1355976.67 | AC212: 0.004124886896 | AD212: 1704452.38
E213: =SUM(E211:E212) -> 1 | F213: =SUM(F211:F212) -> 169078184.3 | G213: =F208-F213 -> 0 | I213: 1 | J213: 230544996.1 | K213: 0 | M213: 1 | N213: 259202455.3 | O213: 0 | Q213: 1 | R213: 283467876.5 | S213: 0 | U213: 1 | V213: 308006527.8 | W213: 0 | Y213: 1 | Z213: 379616885.6 | AA213: 0 | AC213: 1 | AD213: 413211906.9 | AE213: 0
B215: Payment Frequency Distribution
A216: 6 Consecutive | B216: 6 Consecutive | E216: =F216/F$222 -> 0.004995733916 | F216: =IFERROR(VLOOKUP($A$216,'[8]Payment Frequency'!$A$1:$C$8,3,FALSE),0) -> 844669.62 | I216: 0.004280394919 | J216: 986823.63 | M216: 0.004994985477 | N216: 1294712.5 | Q216: 0.005498234295 | R216: 1558572.8 | U216: 0.005247031585 | V216: 1616119.98 | Y216: 0.004554861113 | Z216: 1729102.19 | AC216: 0.005315294897 | AD216: 2196343.14
... 24 more rows

Sheet Note Balance
C1: TOTAL NOTE BALANCES
D2: Total Notes | E2: Class A1 Notes | F2: Class A2 Notes | G2: Class B Notes | H2: Class C Notes
C3: Initial Invested Amount | D3: =SUM(E3:H3) -> 417600000 | E3: 122000000 | F3: 272200000 | G3: 13500000 | H3: 9900000
C4: Invested Amount as at Previous Payment Date: 17 August 2017 | D4: =SUM(E4:H4) -> 417600000 | E4: 122000000 | F4: 272200000 | G4: 13500000 | H4: 9900000
C5: Stated Amount as at Previous Payment Date: 17 August 2017 | D5: =SUM(E5:H5) -> 417600000 | E5: 122000000 | F5: 272200000 | G5: 13500000 | H5: 9900000
C6: Principal Payments to Noteholders on Payment Date | D6: 36788093.09 | E6: 36788093.09 | F6: 0 | G6: 0 | H6: 0
C7: Gross Aggregate Charge-Offs | D7: 0 | E7: 0 | F7: 0 | G7: 0 | H7: 0
C8: Gross Aggregate Reinstatements of charge-offs | D8: 0 | E8: 0 | F8: 0 | G8: 0 | H8: 0
C9: Aggregate Charge-Offs for this Collection Period | D9: 0 | E9: 0 | F9: 0 | G9: 0 | H9: 0
C10: Reinstatements relating to Charge-offs that have occurred this Collection Period | D10: 0 | E10: 0 | F10: 0 | G10: 0 | H10: 0
C11: Aggregate Carry Over Charge-offs not previously reinstated | D11: 0 | E11: 0 | F11: 0 | G11: 0 | H11: 0
C12: Reinstatements of Carry Over Charge-offs not previously reinstated | D12: 0 | E12: 0 | F12: 0 | G12: 0 | H12: 0
C13: Aggregate Charge-Offs not reinstated and to be carried over to next period | D13: 0 | E13: 0 | F13: 0 | G13: 0 | H13: 0
C14: Invested Amount as at Payment Date: 16 November 2017 | D14: =SUM(E14:H14) -> 380811906.9 | E14: 85211906.91 | F14: 272200000 | G14: 13500000 | H14: 9900000
C15: Stated Amount as at Payment Date: 16 November 2017 | D15: =SUM(E15:H15) -> 380811906.9 | E15: 85211906.91 | F15: 272200000 | G15: 13500000 | H15: 9900000
C16: Bond Factor at Payment Date: 16 November 2017 | E16: 0.6984582534 | F16: 1 | G16: 1 | H16: 1
C17: Coupon Margin | E17: 0.0058 | F17: 0.0093 | G17: 0.017 | H17: 0.023
C18: Coupon Rate (3 month BBSW + margin) | E18: 0.02275 | F18: 0.02625 | G18: 0.03395 | H18: 0.03995
C19: Days in Coupon Period | E19: 91 | F19: 91 | G19: 91 | H19: 91
C20: Coupon Entitlement to be paid out on the current Payment Date: 16 November 2017 | E20: 691973.97 | F20: 1781418.49 | G20: 114267.33 | H20: 98605.36
C23: TOTAL NOTE BALANCES
D24: Total Notes | E24: Class A1 Notes | F24: Class A2 Notes | G24: Class B Notes | H24: Class C Notes
C25: Initial Invested Amount | D25: =SUM(E25:H25) -> 417600000 | E25: 122000000 | F25: 272200000 | G25: 13500000 | H25: 9900000
C26: Invested Amount as at Previous Payment Date: 16 November 2017 | D26: =SUM(E26:H26) -> 380811906.9 | E26: 85211906.91 | F26: 272200000 | G26: 13500000 | H26: 9900000
C27: Stated Amount as at Previous Payment Date: 16 November 2017 | D27: =SUM(E27:H27) -> 380811906.9 | E27: 85211906.91 | F27: 272200000 | G27: 13500000 | H27: 9900000
C28: Principal Payments to Noteholders on Payment Date | D28: =SUM(E28:H28) -> 33408797.1 | E28: 33408797.1 | F28: 0 | G28: 0 | H28: 0
C29: Gross Aggregate Charge-Offs | D29: 0 | E29: 0 | F29: 0 | G29: 0 | H29: 0
C30: Gross Aggregate Reinstatements of charge-offs | D30: 0 | E30: 0 | F30: 0 | G30: 0 | H30: 0
C31: Aggregate Charge-Offs for this Collection Period | D31: 0 | E31: 0 | F31: 0 | G31: 0 | H31: 0
C32: Reinstatements relating to Charge-offs that have occurred this Collection Period | D32: 0 | E32: 0 | F32: 0 | G32: 0 | H32: 0
C33: Aggregate Carry Over Charge-offs not previously reinstated | D33: 0 | E33: 0 | F33: 0 | G33: 0 | H33: 0
C34: Reinstatements of Carry Over Charge-offs not previously reinstated | D34: 0 | E34: 0 | F34: 0 | G34: 0 | H34: 0
C35: Aggregate Charge-Offs not reinstated and to be carried over to next period | D35: 0 | E35: 0 | F35: 0 | G35: 0 | H35: 0
C36: Invested Amount as at Payment Date: 16 February 2018 | D36: =SUM(E36:H36) -> 347403109.8 | E36: 51803109.81 | F36: 272200000 | G36: 13500000 | H36: 9900000
C37: Stated Amount as at Payment Date: 16 February 2018 | D37: =SUM(E37:H37) -> 347403109.8 | E37: 51803109.81 | F37: 272200000 | G37: 13500000 | H37: 9900000
C38: Bond Factor at Payment Date: 16 February 2018 | E38: 0.4246156542 | F38: 1 | G38: 1 | H38: 1
C39: Coupon Margin | E39: 0.0058 | F39: 0.0093 | G39: 0.017 | H39: 0.023
C40: Coupon Rate (3 month BBSW + margin) | E40: 0.023 | F40: 0.0265 | G40: 0.0342 | H40: 0.0402
C41: Days in Coupon Period | E41: 92 | F41: 92 | G41: 92 | H41: 92
C42: Coupon Entitlement to be paid out on the current Payment Date: 16 February 2018 | E42: 493995.6 | F42: 1818146.85 | G42: 116373.7 | H42: 100312.77
C45: TOTAL NOTE BALANCES
D46: Total Notes | E46: Class A1 Notes | F46: Class A2 Notes | G46: Class B Notes | H46: Class C Notes
C47: Initial Invested Amount | D47: =SUM(E47:H47) -> 417600000 | E47: 122000000 | F47: 272200000 | G47: 13500000 | H47: 9900000
C48: Invested Amount as at Previous Payment Date: 16 February 2018 | D48: =SUM(E48:H48) -> 347403109.8 | E48: 51803109.81 | F48: 272200000 | G48: 13500000 | H48: 9900000
C49: Stated Amount as at Previous Payment Date: 16 February 2018 | D49: =SUM(E49:H49) -> 347403109.8 | E49: 51803109.81 | F49: 272200000 | G49: 13500000 | H49: 9900000
C50: Principal Payments to Noteholders on Payment Date | D50: =SUM(E50:H50) -> 71610357.76 | E50: 51803109.81 | F50: 19807247.95 | G50: 0 | H50: 0
C51: Gross Aggregate Charge-Offs | D51: 0 | E51: 0 | F51: 0 | G51: 0 | H51: 0
C52: Gross Aggregate Reinstatements of charge-offs | D52: 0 | E52: 0 | F52: 0 | G52: 0 | H52: 0
C53: Aggregate Charge-Offs for this Collection Period | D53: 0 | E53: 0 | F53: 0 | G53: 0 | H53: 0
C54: Reinstatements relating to Charge-offs that have occurred this Collection Period | D54: 0 | E54: 0 | F54: 0 | G54: 0 | H54: 0
C55: Aggregate Carry Over Charge-offs not previously reinstated | D55: 0 | E55: 0 | F55: 0 | G55: 0 | H55: 0
C56: Reinstatements of Carry Over Charge-offs not previously reinstated | D56: 0 | E56: 0 | F56: 0 | G56: 0 | H56: 0
C57: Aggregate Charge-Offs not reinstated and to be carried over to next period | D57: 0 | E57: 0 | F57: 0 | G57: 0 | H57: 0
C58: Invested Amount as at Payment Date: 16 May 2018 | D58: =SUM(E58:H58) -> 275792752.1 | E58: 0 | F58: 252392752.1 | G58: 13500000 | H58: 9900000
C59: Stated Amount as at Payment Date: 16 May 2018 | D59: =SUM(E59:H59) -> 275792752.1 | E59: -7.450580597e-09 | F59: 252392752.1 | G59: 13500000 | H59: 9900000
C60: Bond Factor at Payment Date: 16 May 2018 | E60: -6.107033276e-17 | F60: 0.9272327408 | G60: 1 | H60: 1
C61: Coupon Margin | E61: 0.0058 | F61: 0.0093 | G61: 0.017 | H61: 0.023
C62: Coupon Rate (3 month BBSW + margin) | E62: 0.02345 | F62: 0.02695 | G62: 0.03465 | H62: 0.04065
C63: Days in Coupon Period | E63: 89 | F63: 89 | G63: 89 | H63: 89
C64: Coupon Entitlement to be paid out on the current Payment Date: 16 May 2018 | E64: 296207.34 | F64: 1788726.88 | G64: 114060.21 | H64: 98127.99
C67: TOTAL NOTE BALANCES
D68: Total Notes | E68: Class A1 Notes | F68: Class A2 Notes | G68: Class B Notes | H68: Class C Notes
C69: Initial Invested Amount | D69: =SUM(E69:H69) -> 417600000 | E69: 122000000 | F69: 272200000 | G69: 13500000 | H69: 9900000
C70: Invested Amount as at Previous Payment Date: 16 May 2018 | D70: =SUM(E70:H70) -> 275792752.1 | E70: 0 | F70: 252392752.1 | G70: 13500000 | H70: 9900000
C71: Stated Amount as at Previous Payment Date: 16 May 2018 | D71: 275792752.1 | E71: -7.450580597e-09 | F71: 252392752.1 | G71: 13500000 | H71: 9900000
C72: Principal Payments to Noteholders on Payment Date | D72: 24526448.4 | E72: 0 | F72: 24526448.4 | G72: 0 | H72: 0
C73: Gross Aggregate Charge-Offs | D73: =SUM(E73:I73) -> 0 | E73: 0 | F73: 0 | G73: 0 | H73: 0
C74: Gross Aggregate Reinstatements of charge-offs | D74: 0 | E74: 0 | F74: 0 | G74: 0 | H74: 0
C75: Aggregate Charge-Offs for this Collection Period | D75: -7.450580597e-09 | E75: -7.450580597e-09 | F75: 0 | G75: 0 | H75: 0
C76: Reinstatements relating to Charge-offs that have occurred this Collection Period | D76: =SUM(E76:I76) -> 0 | E76: 0 | F76: 0 | G76: 0 | H76: 0
C77: Aggregate Carry Over Charge-offs not previously reinstated | D77: 0 | E77: 0 | F77: 0 | G77: 0 | H77: 0
C78: Reinstatements of Carry Over Charge-offs not previously reinstated | D78: 0 | E78: 0 | F78: 0 | G78: 0 | H78: 0
C79: Aggregate Charge-Offs not reinstated and to be carried over to next period | D79: -7.450580597e-09 | E79: -7.450580597e-09 | F79: 0 | G79: 0 | H79: 0
C80: Invested Amount as at Payment Date: 16 August 2018 | D80: =SUM(E80:H80) -> 251266303.7 | E80: 0 | F80: 227866303.7 | G80: 13500000 | H80: 9900000
C81: Stated Amount as at Payment Date: 16 August 2018 | D81: =SUM(E81:H81) -> 251266303.7 | E81: 0 | F81: 227866303.7 | G81: 13500000 | H81: 9900000
C82: Bond Factor at Payment Date: 16 August 2018 | E82: 0 | F82: 0.837128228 | G82: 1 | H82: 1
C83: Coupon Margin | E83: 0.0058 | F83: 0.0093 | G83: 0.017 | H83: 0.023
C84: Coupon Rate (3 month BBSW + margin) | E84: 0.0248 | F84: 0.0283 | G84: 0.036 | H84: 0.042
C85: Days in Coupon Period | E85: 92 | F85: 92 | G85: 92 | H85: 92
C86: Coupon Entitlement to be paid out on the current Payment Date: 16 August 2018 | E86: 0 | F86: 1800355.53 | G86: 122498.63 | H86: 104804.38
C89: TOTAL NOTE BALANCES
D90: Total Notes | E90: Class A1 Notes | F90: Class A2 Notes | G90: Class B Notes | H90: Class C Notes
C91: Initial Invested Amount | D91: =SUM(E91:H91) -> 417600000 | E91: 122000000 | F91: 272200000 | G91: 13500000 | H91: 9900000
C92: Invested Amount as at Previous Payment Date: 16 August 2018 | D92: 251266303.7 | E92: 0 | F92: 227866303.7 | G92: 13500000 | H92: 9900000
C93: Stated Amount as at Previous Payment Date: 16 August 2018 | D93: 251266303.7 | E93: 0 | F93: 227866303.7 | G93: 13500000 | H93: 9900000
C94: Principal Payments to Noteholders on Payment Date | D94: 24074875.89 | E94: 0 | F94: 24074875.89 | G94: 0 | H94: 0
C95: Gross Aggregate Charge-Offs | D95: 0 | E95: 0 | F95: 0 | G95: 0 | H95: 0
C96: Gross Aggregate Reinstatements of charge-offs | D96: 0 | E96: 0 | F96: 0 | G96: 0 | H96: 0
C97: Aggregate Charge-Offs for this Collection Period | D97: 0 | E97: 0 | F97: 0 | G97: 0 | H97: 0
C98: Reinstatements relating to Charge-offs that have occurred this Collection Period | D98: 0 | E98: 0 | F98: 0 | G98: 0 | H98: 0
C99: Aggregate Carry Over Charge-offs not previously reinstated | D99: 0 | E99: 0 | F99: 0 | G99: 0 | H99: 0
C100: Reinstatements of Carry Over Charge-offs not previously reinstated | D100: 0 | E100: 0 | F100: 0 | G100: 0 | H100: 0
C101: Aggregate Charge-Offs not reinstated and to be carried over to next period | D101: 0 | E101: 0 | F101: 0 | G101: 0 | H101: 0
C102: Invested Amount as at Payment Date: 16 November 2018 | D102: 227191427.8 | E102: 0 | F102: 203791427.8 | G102: 13500000 | H102: 9900000
C103: Stated Amount as at Payment Date: 16 November 2018 | D103: 227191427.8 | E103: 0 | F103: 203791427.8 | G103: 13500000 | H103: 9900000
C104: Bond Factor at Payment Date: 16 November 2018 | E104: 0 | F104: 0.7486826883 | G104: 1 | H104: 1
C105: Coupon Margin | E105: 0.0058 | F105: 0.0093 | G105: 0.017 | H105: 0.023
C106: Coupon Rate (3 month BBSW + margin) | E106: 0.02535 | F106: 0.02885 | G106: 0.03655 | H106: 0.04255
C107: Days in Coupon Period | E107: 92 | F107: 92 | G107: 92 | H107: 92
C108: Coupon Entitlement to be paid out on the current Payment Date: 16 November 2018 | E108: 0 | F108: 1656993.82 | G108: 124370.14 | H108: 106176.82
C111: TOTAL NOTE BALANCES
D112: Total Notes | E112: Class A1 Notes | F112: Class A2 Notes | G112: Class B Notes | H112: Class C Notes
C113: Initial Invested Amount | D113: =SUM(E113:H113) -> 417600000 | E113: 122000000 | F113: 272200000 | G113: 13500000 | H113: 9900000
C114: Invested Amount as at Previous Payment Date: 16 November 2018 | D114: 227191427.8 | E114: 0 | F114: 203791427.8 | G114: 13500000 | H114: 9900000
C115: Stated Amount as at Previous Payment Date: 16 November 2018 | D115: 227191427.8 | E115: 0 | F115: 203791427.8 | G115: 13500000 | H115: 9900000
C116: Principal Payments to Noteholders on Payment Date | D116: 28657459.21 | E116: 0 | F116: 28657459.21 | G116: 0 | H116: 0
C117: Gross Aggregate Charge-Offs | D117: 0 | E117: 0 | F117: 0 | G117: 0 | H117: 0
C118: Gross Aggregate Reinstatements of charge-offs | D118: 0 | E118: 0 | F118: 0 | G118: 0 | H118: 0
C119: Aggregate Charge-Offs for this Collection Period | D119: 0 | E119: 0 | F119: 0 | G119: 0 | H119: 0
C120: Reinstatements relating to Charge-offs that have occurred this Collection Period | D120: 0 | E120: 0 | F120: 0 | G120: 0 | H120: 0
C121: Aggregate Carry Over Charge-offs not previously reinstated | D121: 0 | E121: 0 | F121: 0 | G121: 0 | H121: 0
C122: Reinstatements of Carry Over Charge-offs not previously reinstated | D122: 0 | E122: 0 | F122: 0 | G122: 0 | H122: 0
C123: Aggregate Charge-Offs not reinstated and to be carried over to next period | D123: 0 | E123: 0 | F123: 0 | G123: 0 | H123: 0
C124: Invested Amount as at Payment Date: 18 February 2019 | D124: 198533968.5 | E124: 0 | F124: 175133968.5 | G124: 13500000 | H124: 9900000
C125: Stated Amount as at Payment Date: 18 February 2019 | D125: 198533968.5 | E125: 0 | F125: 175133968.5 | G125: 13500000 | H125: 9900000
C126: Bond Factor at Payment Date: 18 February 2019 | E126: 0 | F126: 0.6434017948 | G126: 1 | H126: 1
C127: Coupon Margin | E127: 0.0058 | F127: 0.0093 | G127: 0.017 | H127: 0.023
C128: Coupon Rate (3 month BBSW + margin) | E128: 0.02521 | F128: 0.02871 | G128: 0.03641 | H128: 0.04241
C129: Days in Coupon Period | E129: 94 | F129: 94 | G129: 94 | H129: 94
C130: Coupon Entitlement to be paid out on the current Payment Date: 18 February 2019 | E130: 0 | F130: 1506794.73 | G130: 126587.1 | H130: 108128.07
C133: TOTAL NOTE BALANCES
D134: Total Notes | E134: Class A1 Notes | F134: Class A2 Notes | G134: Class B Notes | H134: Class C Notes
C135: Initial Invested Amount | D135: =SUM(E135:H135) -> 417600000 | E135: 122000000 | F135: 272200000 | G135: 13500000 | H135: 9900000
C136: Invested Amount as at Previous Payment Date: 18 February 2019 | D136: =SUM(E136:H136) -> 198533968.5 | E136: 0 | F136: 175133968.5 | G136: 13500000 | H136: 9900000
C137: Stated Amount as at Previous Payment Date: 18 February 2019 | D137: =SUM(E137:H137) -> 198533968.5 | E137: 0 | F137: 175133968.5 | G137: 13500000 | H137: 9900000
C138: Principal Payments to Noteholders on Payment Date | D138: =SUM(E138:H138) -> 61466811.79 | E138: 0 | F138: 61466811.79 | G138: 0 | H138: 0
C139: Gross Aggregate Charge-Offs | D139: =SUM(E139:H139) -> 0 | E139: 0 | F139: 0 | G139: 0 | H139: 0
C140: Gross Aggregate Reinstatements of charge-offs | D140: 0 | E140: 0 | F140: 0 | G140: 0 | H140: 0
C141: Aggregate Charge-Offs for this Collection Period | D141: 0 | E141: 0 | F141: 0 | G141: 0 | H141: 0
C142: Reinstatements relating to Charge-offs that have occurred this Collection Period | D142: 0 | E142: 0 | F142: 0 | G142: 0 | H142: 0
C143: Aggregate Carry Over Charge-offs not previously reinstated | D143: 0 | E143: 0 | F143: 0 | G143: 0 | H143: 0
C144: Reinstatements of Carry Over Charge-offs not previously reinstated | D144: 0 | E144: 0 | F144: 0 | G144: 0 | H144: 0
C145: Aggregate Charge-Offs not reinstated and to be carried over to next period | D145: 0 | E145: 0 | F145: 0 | G145: 0 | H145: 0
C146: Invested Amount as at Payment Date: 16 May 2019 | D146: 137067156.8 | E146: 0 | F146: 113667156.8 | G146: 13500000 | H146: 9900000
C147: Stated Amount as at Payment Date: 16 May 2019 | D147: 137067156.8 | E147: 0 | F147: 113667156.8 | G147: 13500000 | H147: 9900000
C148: Bond Factor at Payment Date: 16 May 2019 | E148: 0 | F148: 0.4175869095 | G148: 1 | H148: 1
C149: Coupon Margin | E149: 0.0058 | F149: 0.0093 | G149: 0.017 | H149: 0.023
C150: Coupon Rate (3 month BBSW + margin) | E150: 0.0253 | F150: 0.0288 | G150: 0.0365 | H150: 0.0425
C151: Days in Coupon Period | E151: 87 | F151: 87 | G151: 87 | H151: 87
C152: Coupon Entitlement to be paid out on the current Payment Date: 16 May 2019 | E152: 0 | F152: 1202234.72 | G152: 117450 | H152: 100288.36

Sheet Cumulative Defaults
A1: Cumulative Defaults & Losses
A3: Month | B3: Gross Losses | C3: Recoveries | D3: Net Losses
A4: 2017-10-01 | B4: 0 | C4: 0 | D4: 0
A5: 2018-01-01 | B5: 0.0004138316 | C5: 0 | D5: 0.0004138316
A6: 2018-04-01 | B6: 0.0004138316 | C6: 0.0004850987475 | D6: 0
A7: 2018-07-01 | B7: 0.0004409492444 | C7: 0.0004850987475 | D7: -4.414950303e-05
A8: 2018-10-01 | B8: 0.0008643831556 | C8: 0.0004882987475 | D8: 0.0003760844081
A9: 2019-01-01 | B9: 0.0008643831556 | C9: 0.0004922987475 | D9: 0.0003720844081
A10: 2019-04-01 | B10: =B9+'Collateral Tables'!E9/450000000 -> 0.0008643831556 | C10: =C9+'Collateral Tables'!E23/450000000 -> 0.0004974987475 | D10: =B10-C10 -> 0.0003668844081
